Workbook

Sheet SUMMARY
A1: Number | B1: Period | C1: End | D1: Start
A2: 0 | B2: None | C2: 0 | D2: 0
A3: 1 | B3: Quaternary | C3: 0 | D3: 3.6
A4: 2 | B4: Neogene | C4: 3.6 | D4: 28.1
A5: 3 | B5: Paleogene | C5: 28.1 | D5: 72.1
A6: 4 | B6: Cretaceous | C6: 72.1 | D6: 152.1
A7: 5 | B7: Jurassic | C7: 152.1 | D7: 208.5
A8: 6 | B8: Triassic | C8: 208.5 | D8: 254.2
A9: 7 | B9: Permian | C9: 254.2 | D9: 303.7
A10: 8 | B10: Carboniferous | C10: 303.7 | D10: 372.2
A11: 9 | B11: Devonian | C11: 372.2 | D11: 423
A12: 10 | B12: Silurian | C12: 423 | D12: 445.2
A13: 11 | B13: Ordovician | C13: 445.2 | D13: 489.5
A14: 12 | B14: Cambrian | C14: 489.5 | D14: 541
A15: 13 | B15: Ediacaran | C15: 541 | D15: 850
A16: 14 | B16: Cryogenian | C16: 850 | D16: 1000
A17: 15 | B17: Tonian | C17: 1000 | D17: 1200
A18: 16 | B18: Stenian | C18: 1200 | D18: 1400
A19: 17 | B19: Ectasian | C19: 1400 | D19: 1600
A20: 18 | B20: Calymmian | C20: 1600 | D20: 1800
A21: 19 | B21: Statherian | C21: 1800 | D21: 2050
A22: 20 | B22: Orosirian | C22: 2050 | D22: 2300
A23: 21 | B23: Rhyacian | C23: 2300 | D23: 2500
A24: 22 | B24: Siderian | C24: 2500 | D24: 2800
A25: 23 | B25: Neoarchean | C25: 2800 | D25: 3200
A26: 24 | B26: Mesoarchean | C26: 3200 | D26: 3600
A27: 25 | B27: Paleoarchean | C27: 3600 | D27: 4000
A28: 26 | B28: Eoarchean | C28: 4000 | D28: 4100
A29: 27 | B29: Early Imbrian | C29: 4100 | D29: 4300
A30: 28 | B30: Nectarian | C30: 4300 | D30: 4500
A31: 29 | B31: Basin Groups | C31: 4500 | D31: 4567
A32: 30 | B32: Cryptic | C32: 4567 | D32: 4600
A33: 31 | B33: Solar System | C33: 4600 | D33: 10000

Sheet Model_Ages
A1: ID | B1: Magazine | C1: Year | D1: Volume | E1: Pages | F1: Hyperlinked Appendixes | G1: Title | H1: Spreadsheet | I1: Excel File | J1: Model Age (ma) | K1: Period ID | L1: Citation | M1: Copied | N1: Period | O1: Negative | P1: Earth | Q1: Sun | R1: Galaxy | S1: Universe | T1: Ar/Ar | U1: K/Ar | V1: Lu/Hf | W1: Os/Os | X1: Pb/Pb | Y1: Rb/Sr | Z1: Re/Os | AA1: Sm/Nd | AB1: Th232 | AC1: U235 | AD1: U238 | AE1: Total
A3: 1 | B3: Economic Geology | C3: 2002 | D3: 97 | E3: 23-42 | G3: Age and Origin of Base and Precious Metal | H3: Ages_001 | I3: http://www.creationismonline.com/YEC/Dating_Methods.xlsm | J3: 1200 | K3: 16 | L3: 1 | M3: Yes | N3: Stenian | P3: 4 | Q3: 4 | R3: 1 | S3: 1 | Y3: 4 | AE3: =SUM(T3:AD3) -> 4
A4: 2 | B4: Earth and Planetary Science Letters | C4: 1974 | D4: 22 | E4: 256-266 | G4: 40 Ar/39ar Dating Of The Long Range Dikes | H4: Ages_002 | I4: http://www.creationismonline.com/YEC/Dating_Methods.xlsm | J4: 605 | K4: 13 | L4: 2 | M4: Yes | N4: Ediacaran | P4: 1 | Q4: 1 | R4: 1 | S4: 1 | T4: 1 | AE4: =SUM(T4:AD4) -> 1
A5: 3 | B5: Earth and Planetary Science Letters | C5: 1975 | D5: 26 | E5: 387-408 | G5: 40ar/39ar Step Heating Of Biotite | H5: Ages_003 | I5: http://www.creationismonline.com/YEC/Dating_Methods.xlsm | J5: 1230 | K5: 16 | L5: 3 | M5: Yes | N5: Stenian | P5: 1 | T5: 1 | AE5: 1
A6: 4 | B6: Economic Geology | C6: 1978 | D6: 73 | E6: 29-49 | G6: Uranium-Daughter Migration | H6: Ages_006 | I6: http://www.creationismonline.com/YEC/Dating_Methods.xlsm | J6: 24 | K6: 2 | L6: 4 | M6: Yes | N6: Neogene | O6: 5 | P6: 1 | Q6: 1 | R6: 1 | X6: 5 | AC6: 1 | AE6: 6
A7: 5 | B7: Earth and Planetary Science Letters | C7: 1974 | D7: 22 | E7: 145-156 | G7: Excess Argon In Ultramafic Rocks | H7: Ages_012 | I7: http://www.creationismonline.com/YEC/Dating_Methods.xlsm | J7: 2800 | K7: 23 | L7: 5 | M7: Yes | N7: Neoarchean | P7: 11 | Q7: 10 | T7: 11 | AE7: 11
A8: 6 | B8: Economic Geology | C8: 1979 | D8: 74 | E8: 1654-1668 | G8: Age Of Uranium Mineralization | H8: Ages_017 | I8: http://www.creationismonline.com/YEC/Dating_Methods.xlsm | J8: 35 | K8: 3 | L8: 6 | M8: Yes | N8: Paleogene | O8: 19 | P8: 5 | Q8: 3 | R8: 1 | X8: 19 | AD8: 5 | AE8: 24
A9: 7 | B9: Earth and Planetary Science Letters | C9: 1973 | D9: 20 | E9: 157-170 | G9: Mineral Age Patterns | H9: Ages_019 | I9: http://www.creationismonline.com/YEC/Dating_Methods.xlsm | J9: 1600 | K9: 18 | L9: 7 | M9: Yes | N9: Calymmian | P9: 4 | Q9: 1 | U9: 4 | AE9: 4
A10: 8 | B10: Geochimica et Cosmochimica Acta | C10: 2005 | D10: 69 | E10: 505-518 | G10: Precise U-Pb dating of Chondrites | H10: Amelin_A | I10: http://www.creationismonline.com/YEC/Dating_Methods.xlsm | J10: 4562 | K10: 29 | L10: 8 | M10: Yes | N10: Basin Groups | P10: 21 | Q10: 5 | AB10: 7 | AC10: 5 | AD10: 9 | AE10: 21
A11: 9 | B11: Meteoritics And Planetary Science | C11: 2007 | D11: 42 | E11: 1321-1335 | G11: Pb isotopic age of the Allende chondrules | H11: Amelin_C | I11: http://www.creationismonline.com/YEC/Dating_Methods.xlsm | J11: 4566 | K11: 29 | L11: 9 | M11: Yes | N11: Basin Groups | P11: 23 | Q11: 11 | R11: 1 | AD11: 23 | AE11: 23
A12: 10 | B12: Geochimica et Cosmochimica Acta | C12: 2008 | D12: 72 | E12: 221-232 | G12: U-Pb ages of angrites | H12: Amelin_D | I12: http://www.creationismonline.com/YEC/Dating_Methods.xlsm | J12: 4557 | K12: 29 | L12: 10 | M12: Yes | N12: Basin Groups | P12: 27 | Q12: 9 | AC12: 13 | AD12: 14 | AE12: 27
A13: 11 | B13: Geochimica et Cosmochimica Acta | C13: 2000 | D13: 64 | E13: 2913-2928 | G13: Geochronology of Quaternary Opal | H13: Amelin_E | I13: http://www.creationismonline.com/YEC/Dating_Methods.xlsm | J13: 1.772 | K13: 1 | L13: 11 | M13: Yes | N13: Quaternary | O13: 3 | P13: 3 | Q13: 2 | X13: 4 | AD13: 2 | AE13: 6
A14: 12 | B14: Geochimica et Cosmochimica Acta | C14: 2008 | D14: 72 | E14: 2067-2089 | G14: Natural Radionuclide Mobility | H14: Amelin_F | I14: http://www.creationismonline.com/YEC/Dating_Methods.xlsm | J14: 10 | K14: 2 | L14: 12 | M14: Yes | N14: Neogene | P14: 9 | Q14: 9 | R14: 5 | S14: 4 | AB14: 4 | AD14: 5 | AE14: 9
A15: 13 | B15: Geochimica et Cosmochimica Acta | C15: 2003 | D15: 67 | E15: 1145-1176 | G15: Silica Mineral Formation | H15: Amelin_G | I15: http://www.creationismonline.com/YEC/Dating_Methods.xlsm | J15: 10 | K15: 2 | L15: 13 | M15: Yes | N15: Neogene | O15: 32 | X15: 32 | AE15: 32
A16: 14 | B16: Meteoritics And Planetary Science | C16: 1998 | D16: 33 | E16: 641-453 | G16: Rhenium-187-/Osmium-187 in iron meteorites | H16: Birck | I16: http://www.creationismonline.com/YEC/Dating_Methods.xlsm | J16: 4624 | K16: 31 | L16: 14 | M16: Yes | N16: Solar System | O16: 9 | P16: 4 | Q16: 4 | R16: 2 | W16: 9 | Y16: 4 | AE16: 13
A17: 15 | B17: Geochimica et Cosmochimica Acta | C17: 1990 | D17: 54 | E17: 2549-2564 | G17: Ar-39, Ar-40 Dating of Mesosiderites | H17: BOGARD_A | I17: http://www.creationismonline.com/YEC/Dating_Methods.xlsm | J17: 3450 | K17: 24 | L17: 15 | M17: Yes | N17: Mesoarchean | P17: 15 | Q17: 15 | R17: 3 | S17: 1 | T17: 15 | AE17: 15
A18: 16 | B18: Geochimica et Cosmochimica Acta | C18: 1980 | D18: 44 | E18: 1667-1682 | G18: Ar diffusion properties, Meteorites | H18: BOGARD_B | I18: http://www.creationismonline.com/YEC/Dating_Methods.xlsm | J18: 4290 | K18: 27 | L18: 16 | M18: Yes | N18: Early Imbrian | P18: 8 | Q18: 7 | T18: 8 | AE18: 8
A19: 17 | B19: Geochimica et Cosmochimica Acta | C19: 2000 | D19: 64 | E19: 2133-2154 | G19: Silicates From IIE Iron Meteorites | H19: BOGARD_D | I19: http://www.creationismonline.com/YEC/Dating_Methods.xlsm | J19: 4490 | K19: 28 | L19: 17 | M19: Yes | N19: Nectarian | P19: 2 | Q19: 1 | T19: 2 | AE19: 2
A20: 18 | B20: Meteoritics And Planetary Science | C20: 2003 | D20: 38 | E20: 669-710 | G20: 39Ar-40Ar Ages of Eucrites | H20: BOGARD_E | I20: http://www.creationismonline.com/YEC/Dating_Methods.xlsm | J20: 4480 | K20: 28 | L20: 18 | M20: Yes | N20: Nectarian | P20: 16 | Q20: 11 | T20: 16 | AE20: 16
A21: 19 | B21: Meteoritics And Planetary Science | C21: 2001 | D21: 36 | E21: 107-122 | G21: Argon-39/Argon-40 Ages | H21: BOGARD_F | I21: http://www.creationismonline.com/YEC/Dating_Methods.xlsm | J21: 4533 | K21: 29 | L21: 19 | M21: Yes | N21: Basin Groups | P21: 4 | Q21: 2 | T21: 4 | AE21: 4
A22: 20 | B22: Earth and Planetary Science Letters | C22: 1967 | D22: 2 | E22: 397-408 | G22: Rb-Sr Ages Of Iron Meteorites | H22: Burnett | I22: http://www.creationismonline.com/YEC/Dating_Methods.xlsm | J22: 4400 | K22: 28 | L22: 20 | M22: Yes | N22: Nectarian | P22: 35 | Q22: 9 | Y22: 35 | AE22: 35
A23: 21 | B23: Geochimica et Cosmochimica Acta | C23: 1976 | D23: 40 | E23: 635-643 | G23: The Allende Carbonaceous Chondrite | H23: Chen_B | I23: http://www.creationismonline.com/YEC/Dating_Methods.xlsm | J23: 4565 | K23: 29 | L23: 21 | M23: Yes | N23: Basin Groups | P23: 7 | Q23: 1 | AB23: 1 | AC23: 3 | AD23: 3 | AE23: 7
A24: 22 | B24: Precambrian Research | C24: 1989 | D24: 42 | E24: 255-291 | G24: The Imataca Complex, Venezuela | H24: Hall | I24: http://www.creationismonline.com/YEC/Dating_Methods.xlsm | J24: 1230 | K24: 16 | L24: 22 | M24: Yes | N24: Stenian | P24: 1 | Q24: 1 | T24: 1 | AE24: 1
A25: 23 | B25: Geomorphology | C25: 2010 | D25: 117 | E25: 44-65 | G25: Mineralogy of Supergene Uranium Minerals | H25: Hill | I25: http://www.creationismonline.com/YEC/Dating_Methods.xlsm | J25: 4 | K25: 2 | L25: 23 | M25: Yes | N25: Neogene | O25: 22 | X25: 22 | AE25: 22
A26: 24 | B26: Icarus | C26: 1980 | D26: 42 | E26: 42 | G26: 40-Ar / 39-Ar Ages of Allende | H26: Jessberger | I26: http://www.creationismonline.com/YEC/Dating_Methods.xlsm | J26: 4530 | K26: 29 | L26: 24 | M26: Yes | N26: Basin Groups | P26: 88 | Q26: 20 | T26: 88 | AE26: 88
A27: 25 | B27: Geochimica et Cosmochimica Acta | C27: 2010 | D27: 74 | E27: 1734-1747 | G27: The Fossil LL6 Chondrite | H27: Jourdan | I27: http://www.creationismonline.com/YEC/Dating_Methods.xlsm | J27: 625 | K27: 13 | L27: 25 | M27: Yes | N27: Ediacaran | P27: 3 | Q27: 3 | R27: 1 | T27: 3 | AE27: 3
A28: 26 | B28: Earth and Planetary Science Letters | C28: 1968 | D28: 4 | E28: 84-88 | G28: K/Ar Age Determinations of Iron Meteorites | H28: Kaiser | I28: http://www.creationismonline.com/YEC/Dating_Methods.xlsm | J28: 4700 | K28: 31 | L28: 26 | M28: Yes | N28: Solar System | P28: 13 | Q28: 8 | U28: 13 | AE28: 13
A29: 27 | B29: Meteoritics And Planetary Science | C29: 2009 | D29: 44 | E29: 293-321 | G29: 40Ar-39Ar Chronology | H29: Korochantseva | I29: http://www.creationismonline.com/YEC/Dating_Methods.xlsm | J29: 885 | K29: 14 | L29: 27 | M29: Yes | N29: Cryogenian | P29: 50 | Q29: 44 | R29: 9 | S29: 2 | T29: 50 | AE29: 50
A30: 28 | B30: Meteoritics And Planetary Science | C30: 1997 | D30: 32 | E30: 647-670 | G30: Shocked meteorites: Argon-40-argon-39 | H30: Kunz | I30: http://www.creationismonline.com/YEC/Dating_Methods.xlsm | J30: 4000 | K30: 26 | L30: 28 | M30: Yes | N30: Eoarchean | P30: 16 | Q30: 14 | R30: 3 | T30: 16 | AE30: 16
A31: 29 | B31: Earth and Planetary Science Letters | C31: 2003 | D31: 209 | E31: 323-336 | G31: Single grain (U-Th)/He ages, Acapulco meteorite | H31: Kyoungwon | I31: http://www.creationismonline.com/YEC/Dating_Methods.xlsm | J31: 4584 | K31: 30 | L31: 29 | M31: Yes | N31: Cryptic | P31: 7 | AB31: 7 | AE31: 7
A32: 30 | B32: Chemical Geology | C32: 1990 | D32: 80 | E32: 201-204 | G32: Location of extraneous argon | H32: Maluski | I32: http://www.creationismonline.com/YEC/Dating_Methods.xlsm | J32: 2050 | K32: 20 | L32: 30 | M32: Yes | N32: Orosirian | P32: 106 | Q32: 83 | R32: 40 | S32: 8 | T32: 106 | AE32: 106
A33: 31 | B33: Geochimica et Cosmochimica Acta | C33: 1988 | D33: 52 | E33: 2487-2499 | G33: The Peace River shocked M chondrite | H33: Mc-Convill | I33: http://www.creationismonline.com/YEC/Dating_Methods.xlsm | J33: 450 | K33: 11 | L33: 31 | M33: Yes | N33: Ordovician | P33: 10 | Q33: 10 | T33: 10 | AE33: 10
A34: 32 | B34: Earth and Planetary Science Letters | C34: 2003 | D34: 209 | E34: 323-336 | G34: (U-Th)/He ages from Acapulco meteorite | H34: Min | I34: http://www.creationismonline.com/YEC/Dating_Methods.xlsm | J34: 4584 | K34: 30 | L34: 32 | M34: Yes | N34: Cryptic | P34: 7 | AE34: 0
A35: 33 | B35: Nature | C35: 1989 | D35: 337 | E35: 226-229 | G35: Age of Zaire Cubic Diamonds | H35: Nature_2 | I35: http://www.creationismonline.com/YEC/Dating_Methods.xlsm | J35: 4610 | K35: 31 | L35: 33 | M35: Yes | N35: Solar System | P35: 1 | Q35: 1 | T35: 1 | AE35: 1
A36: 34 | B36: Geochimica et Cosmochimica Acta | C36: 1979 | D36: 43 | E36: 1829-1840 | G36: Ar-39, Ar-40 dating of inclusions from IAB iron meteorites | H36: Niemeyer | I36: http://www.creationismonline.com/YEC/Dating_Methods.xlsm | J36: 4540 | K36: 29 | L36: 34 | M36: Yes | N36: Basin Groups | O36: 13 | P36: 32 | Q36: 27 | T36: 45 | AE36: 45
A37: 35 | B37: Geochimica et Cosmochimica Acta | C37: 1990 | D37: 54 | E37: 3509-3523 | G37: Antarctic LL-chondrites | H37: Okano | I37: http://www.creationismonline.com/YEC/Dating_Methods.xlsm | J37: 1200 | K37: 16 | L37: 35 | M37: Yes | N37: Stenian | P37: 4 | Q37: 2 | Y37: 4 | AE37: 4
A38: 36 | B38: Earth and Planetary Science Letters | C38: 2004 | D38: 223 | E38: 360 | G38: 40Ar-39Ar Dating of Pseudo Tachylytes | H38: Older_1 | I38: http://www.creationismonline.com/YEC/Dating_Methods.xlsm | J38: 44 | K38: 3 | L38: 36 | M38: Yes | N38: Paleogene | P38: 2 | Q38: 2 | T38: 2 | AE38: 2
A39: 37 | B39: Earth and Planetary Science Letters | C39: 1994 | D39: 126 | E39: 460 | G39: North Western Wyoming Craton | H39: Older_2 | I39: http://www.creationismonline.com/YEC/Dating_Methods.xlsm | J39: 2700 | K39: 22 | L39: 37 | M39: Yes | N39: Siderian | O39: 11 | P39: 22 | Q39: 22 | R39: 2 | S39: 1 | W39: 10 | X39: 18 | Y39: 3 | AA39: 2 | AE39: 33
A40: 38 | B40: Earth and Planetary Science Letters | C40: 1999 | D40: 172 | E40: 207 | G40: The Strangways impact structure | H40: Older_4 | I40: http://www.creationismonline.com/YEC/Dating_Methods.xlsm | J40: 646 | K40: 13 | L40: 38 | M40: Yes | N40: Ediacaran | P40: 7 | Q40: 5 | T40: 7 | AE40: 7
A41: 39 | B41: Geochimica et Cosmochimica Acta | C41: 1989 | D41: 53 | E41: 1591 | G41: African Peridotite Xenoliths | H41: Older_5 | I41: http://www.creationismonline.com/YEC/Dating_Methods.xlsm | J41: 2400 | K41: 21 | L41: 39 | M41: Yes | N41: Rhyacian | O41: 4 | P41: 2 | Q41: 2 | R41: 1 | W41: 5 | Y41: 1 | AE41: 6
A42: 40 | B42: Earth and Planetary Science Letters | C42: 1982 | D42: 61 | E42: 293 | G42: The Study of Molybdenites | H42: Older_7 | I42: http://www.creationismonline.com/YEC/Dating_Methods.xlsm | J42: 2700 | K42: 22 | L42: 40 | M42: Yes | N42: Siderian | P42: 2 | Q42: 2 | Z42: 2 | AE42: 2
A43: 41 | B43: Geochimica et Cosmochimica Acta | C43: 1993 | D43: 57 | E43: 1626 | G43: Reliable Re-Os Ages | H43: Older_8 | I43: http://www.creationismonline.com/YEC/Dating_Methods.xlsm | J43: 2690 | K43: 22 | L43: 41 | M43: Yes | N43: Siderian | P43: 2 | Q43: 2 | Z43: 2 | AE43: 2
A44: 42 | B44: Geochimica et Cosmochimica Acta | C44: 2006 | D44: 70 | E44: 2573-2575 | G44: 40Ar-39Ar Quartz Ages | H44: Older_9 | I44: http://www.creationismonline.com/YEC/Dating_Methods.xlsm | J44: 1595 | K44: 17 | L44: 42 | M44: Yes | N44: Ectasian | P44: 29 | Q44: 19 | T44: 29 | AE44: 29
A45: 43 | B45: Earth and Planetary Science Letters | C45: 1995 | D45: 134 | E45: 341-357 | G45: Stabilisation of Archaean lithosphere | H45: Pearson | I45: http://www.creationismonline.com/YEC/Dating_Methods.xlsm | J45: 3500 | K45: 24 | L45: 43 | M45: Yes | N45: Mesoarchean | P45: 4 | Q45: 4 | R45: 3 | S45: 1 | Z45: 4 | AE45: 4
A46: 44 | B46: Geochimica et Cosmochimica Acta | C46: 1997 | D46: 61 | E46: 3477-3501 | G46: History Of The Acapulco Meteorite | H46: Pellas | I46: http://www.creationismonline.com/YEC/Dating_Methods.xlsm | J46: 4514 | K46: 29 | L46: 44 | M46: Yes | N46: Basin Groups | P46: 4 | Q46: 4 | R46: 2 | T46: 4 | AE46: 4
A47: 45 | B47: Science | C47: 1967 | D47: 155 | E47: 999-1000 | G47: Potassium: Argon Dating of Iron Meteorites | H47: Ranticelli | I47: http://www.creationismonline.com/YEC/Dating_Methods.xlsm | J47: 4700 | K47: 31 | L47: 45 | M47: Yes | N47: Solar System | P47: 8 | Q47: 7 | R47: 1 | U47: 8 | AE47: 8
A48: 46 | B48: Geochimica et Cosmochimica Acta | C48: 1970 | D48: 34 | E48: 713-725 | G48: Isotopic discrepancies in Black Hills, South Dakota | H48: Riley | I48: http://www.creationismonline.com/YEC/Dating_Methods.xlsm | J48: 1744 | K48: 18 | L48: 46 | M48: Yes | N48: Calymmian | P48: 8 | Q48: 7 | R48: 6 | S48: 6 | Y48: 8 | AE48: 8
A49: 47 | B49: Geochimica et Cosmochimica Acta | C49: 1958 | D49: 15 | E49: 40-50 | G49: Potassium-argon age of iron meteorites | H49: Stoenner | I49: http://www.creationismonline.com/YEC/Dating_Methods.xlsm | J49: 4500 | K49: 29 | L49: 47 | M49: Yes | N49: Basin Groups | P49: 17 | Q49: 17 | R49: 5 | U49: 17 | AE49: 17
A50: 48 | B50: Geochimica et Cosmochimica Acta | C50: 1976 | D50: 40 | E50: 617-634 | G50: The Allende and Orgueil Chondrites | H50: Tatsumoto | I50: http://www.creationismonline.com/YEC/Dating_Methods.xlsm | J50: 4553 | K50: 29 | L50: 48 | M50: Yes | N50: Basin Groups | P50: 67 | Q50: 52 | R50: 6 | S50: 2 | Y50: 1 | AB50: 16 | AC50: 23 | AD50: 27 | AE50: 67
A51: 49 | B51: Earth and Planetary Science Letters | C51: 1973 | D51: 19 | E51: 321-329 | G51: Isotopic Lead Ages Of Meteorites | H51: Tilton | I51: http://www.creationismonline.com/YEC/Dating_Methods.xlsm | J51: 4635 | K51: 31 | L51: 49 | M51: Yes | N51: Solar System | P51: 34 | Q51: 12 | X51: 26 | AC51: 4 | AD51: 4 | AE51: 34
A52: 50 | B52: Earth and Planetary Science Letters | C52: 1972 | D52: 14 | E52: 281-304 | G52: Three Apollo 14 Basalts | H52: Wasserburg | I52: http://www.creationismonline.com/YEC/Dating_Methods.xlsm | J52: 4240 | K52: 27 | L52: 50 | M52: Yes | N52: Early Imbrian | P52: 76 | Q52: 57 | R52: 7 | S52: 3 | X52: 23 | AC52: 36 | AD52: 17 | AE52: 76
A53: 51 | B53: Lithos | C53: 2010 | D53: 117 | E53: 1-19 | G53: Norwegian Caledonides: An isotopic investigation | H53: Future_Ages_01 | I53: http://www.creationismonline.com/YEC/Future.xlsm | J53: 1650 | K53: 18 | L53: 51 | M53: Yes | N53: Calymmian | O53: 19 | P53: 20 | Q53: 18 | R53: 8 | S53: 8 | Y53: 39 | AE53: 39
A54: 52 | B54: Lithos | C54: 2012 | D54: 142-143 | E54: 161-181 | G54: Multi-stage origin of Roberts Victor eclogites | H54: Future_Ages_02 | I54: http://www.creationismonline.com/YEC/Future.xlsm | J54: 103 | K54: 4 | L54: 52 | M54: Yes | N54: Cretaceous | O54: 40 | P54: 12 | Q54: 12 | R54: 3 | S54: 3 | V54: 22 | Y54: 17 | AA54: 13 | AE54: 52
A55: 53 | B55: Geochimica et Cosmochimica Acta | C55: 1999 | D55: 63 | E55: 1203-1217 | G55: Re-Os systematics of mantle xenoliths | H55: Future_Ages_03 | I55: http://www.creationismonline.com/YEC/Future.xlsm | J55: 2800 | K55: 23 | L55: 53 | M55: Yes | N55: Neoarchean | O55: 6 | W55: 6 | AE55: 6
A56: 54 | B56: Lithos | C56: 2008 | D56: 102 | E56: 43-64 | G56: Re/Os Isotopes of Sulfides | H56: Future_Ages_05 | I56: http://www.creationismonline.com/YEC/Future.xlsm | J56: 1800 | K56: 19 | L56: 54 | M56: Yes | N56: Statherian | O56: 226 | P56: 34 | Q56: 34 | R56: 9 | S56: 6 | W56: 86 | Z56: 174 | AE56: 260
A57: 55 | B57: Contributions Mineral Petrology | C57: 2005 | D57: 148 | E57: 707-720 | G57: Roberts Victor Eclogites | H57: Future_Ages_06 | I57: http://www.creationismonline.com/YEC/Future.xlsm | J57: 128 | K57: 4 | L57: 55 | M57: Yes | N57: Cretaceous | O57: 1 | AA57: 1 | AE57: 1
A58: 56 | B58: Chemical Geology | C58: 1997 | D58: 142 | E58: 63-78 | G58: Lu-Hf Geochronology | H58: Future_Ages_08 | I58: http://www.creationismonline.com/YEC/Future.xlsm | J58: 25 | K58: 2 | L58: 56 | M58: Yes | N58: Neogene | O58: 7 | V58: 2 | AA58: 5 | AE58: 7
A59: 57 | B59: Chemical Geology | C59: 2000 | D59: 162 | E59: 169-191 | G59: Isotopic Disequilibrium | H59: Future_Ages_09 | I59: http://www.creationismonline.com/YEC/Future.xlsm | J59: 12 | K59: 2 | L59: 57 | M59: Yes | N59: Neogene | O59: 3 | P59: 30 | Q59: 22 | R59: 7 | X59: 10 | Y59: 3 | AD59: 20 | AE59: 33
A60: 58 | B60: Lithos | C60: 2009 | D60: 112-S | E60: 896-912 | G60: Multiple Metasomatic Events | H60: Future_Ages_11 | I60: http://www.creationismonline.com/YEC/Future.xlsm | J60: 600 | K60: 13 | L60: 58 | M60: Yes | N60: Ediacaran | O60: 4 | AA60: 4 | AE60: 4
A61: 59 | B61: Chemical Geology | C61: 2007 | D61: 236 | E61: 323-338 | G61: Re-Os Evidence | H61: Future_Ages_12 | I61: http://www.creationismonline.com/YEC/Future.xlsm | J61: 1800 | K61: 19 | L61: 59 | M61: Yes | N61: Statherian | P61: 1 | Q61: 1 | Z61: 1 | AE61: 1
A62: 60 | B62: Chemical Geology | C62: 2008 | D62: 248 | E62: 195-212 | G62: The Mamonia complex, Cyprus | H62: Future_Ages_14 | I62: http://www.creationismonline.com/YEC/Future.xlsm | J62: 600 | K62: 13 | L62: 60 | M62: Yes | N62: Ediacaran | O62: 14 | W62: 14 | AE62: 14
A63: 61 | B63: Chemical Geology | C63: 2004 | D63: 208 | E63: 141- 156 | G63: A Paleozoic Convergent Plate | H63: Future_Ages_16 | I63: http://www.creationismonline.com/YEC/Future.xlsm | J63: 320 | K63: 8 | L63: 61 | M63: Yes | N63: Carboniferous | O63: 2 | P63: 3 | Q63: 3 | Z63: 5 | AE63: 5
A64: 62 | B64: Geochimica et Cosmochimica Acta | C64: 2000 | D64: 64 | E64: 3061-3071 | G64: Northern Canadian Cordillera Xenoliths | H64: Future_Ages_17 | I64: http://www.creationismonline.com/YEC/Future.xlsm | J64: 1210 | K64: 16 | L64: 62 | M64: Yes | N64: Stenian | O64: 19 | W64: 19 | AE64: 19
A65: 63 | B65: Lithos | C65: 2008 | D65: 102 | E65: 25-42 | G65: Xenoliths from Yangyuan and Fansi | H65: Future_Ages_19 | I65: http://www.creationismonline.com/YEC/Future.xlsm | J65: 2600 | K65: 22 | L65: 63 | M65: Yes | N65: Siderian | O65: 10 | P65: 1 | Q65: 1 | W65: 4 | Z65: 7 | AE65: 11
A66: 64 | B66: Chemical Geology | C66: 2010 | D66: 276 | E66: 166-187 | G66: Formation of the North Atlantic Craton | H66: Future_Ages_21 | I66: http://www.creationismonline.com/YEC/Future.xlsm | J66: 2800 | K66: 23 | L66: 64 | M66: Yes | N66: Neoarchean | O66: 10 | P66: 12 | Q66: 10 | R66: 1 | S66: 1 | W66: 4 | Z66: 18 | AE66: 22
A67: 65 | B67: Geochimica et Cosmochimica Acta | C67: 2003 | D67: 67 | E67: 3673-3686 | G67: ICP-MS spot dating in molybdenite | H67: Future_Ages_22 | I67: http://www.creationismonline.com/YEC/Future.xlsm | J67: 2760 | K67: 22 | L67: 65 | M67: Yes | N67: Siderian | P67: 1 | Q67: 1 | Z67: 1 | AE67: 1
A68: 66 | B68: Geochimica et Cosmochimica Acta | C68: 2002 | D68: 66 | E68: 1037-1050 | G68: In situ Measurement of Re-Os Isotopes | H68: Future_Ages_26 | I68: http://www.creationismonline.com/YEC/Future.xlsm | J68: 2900 | K68: 23 | L68: 66 | M68: Yes | N68: Neoarchean | O68: 22 | P68: 1 | Q68: 1 | W68: 9 | Z68: 14 | AE68: =SUM(T68:AD68) -> 23
A69: 67 | B69: Journal Of Petrology | C69: 2011 | D69: 52 | E69: 315–343 | G69: Insights from Dike Geochemistry | H69: GOOD_B | I69: http://www.creationismonline.com/YEC/GOOD.xlsm | J69: 65 | K69: 3 | L69: 67 | M69: Yes | N69: Paleogene | P69: 80 | Q69: 33 | X69: 80 | AE69: 80
A70: 68 | B70: Phil. Trans. R. Soc. Lond. A | C70: 1980 | D70: 297 | E70: 409-445 | G70: Lead isotopic study of young volcanic rocks | H70: GOOD_C | I70: http://www.creationismonline.com/YEC/GOOD.xlsm | J70: 1 | K70: 1 | L70: 68 | M70: Yes | N70: Quaternary | P70: 96 | Q70: 15 | X70: 96 | AE70: 96
A71: 69 | B71: Geology Magazine | C71: 2004 | D71: 141 | E71: 55-62 | G71: Evidence From Sr-Nd-Pb Isotopic Systematics | H71: GOOD_D | I71: http://www.creationismonline.com/YEC/GOOD.xlsm | J71: 125 | K71: 4 | L71: 69 | M71: Yes | N71: Cretaceous | P71: 76 | Q71: 76 | R71: 22 | S71: 8 | X71: 38 | AD71: 38 | AE71: 76
A72: 70 | B72: Geochemistry And Geophysics Geosystems | C72: 2006 | D72: 7 | E72: 11 | G72: Siberian Meimechites and Kimberlites | H72: GOOD_F | I72: http://www.creationismonline.com/YEC/GOOD.xlsm | J72: 400 | K72: 9 | L72: 70 | M72: Yes | N72: Devonian | P72: 27 | Q72: 7 | X72: 20 | AD72: 7 | AE72: 27
A73: 71 | B73: Earth and Planetary Science Letters | C73: 1994 | D73: 123 | E73: 139-154 | G73: East Mariana Basin Tholeiites | H73: GOOD_G | I73: http://www.creationismonline.com/YEC/GOOD.xlsm | J73: 110 | K73: 4 | L73: 71 | M73: Yes | N73: Cretaceous | P73: 8 | Q73: 1 | X73: 8 | AE73: 8
A74: 72 | B74: Earth and Planetary Science Letters | C74: 2011 | D74: 302 | E74: 154-162 | G74: Geochemical portray of the Paciﬁc Ridge | H74: GOOD_L | I74: http://www.creationismonline.com/YEC/GOOD.xlsm | J74: 2000 | K74: 19 | L74: 72 | M74: Yes | N74: Statherian | P74: 63 | Q74: 6 | X74: 63 | AE74: 63
A75: 73 | B75: Chemical Geology | C75: 2010 | D75: 277 | E75: 227-244 | G75: Isotopic (Sr, Nd, Pb, and Os) Composition | H75: GOOD_N | I75: http://www.creationismonline.com/YEC/GOOD.xlsm | J75: 180 | K75: 5 | L75: 73 | M75: Yes | N75: Jurassic | P75: 39 | Q75: 39 | R75: 15 | S75: 10 | X75: 13 | AB75: 13 | AD75: 13 | AE75: 39
A76: 74 | B76: Earth and Planetary Science Letters | C76: 2000 | D76: 180 | E76: 259-270 | G76: Genesis of Plio-Pleistocene Volcanic Rocks | H76: GOOD_P | I76: http://www.creationismonline.com/YEC/GOOD.xlsm | J76: 650 | K76: 13 | L76: 74 | M76: Yes | N76: Ediacaran | P76: 10 | Q76: 7 | X76: 10 | AE76: 10
A77: 75 | B77: Journal Of Petrology | C77: 2006 | D77: 47 | E77: 1705–1749 | G77: Isotope Evidence for Recycled Oceanic Crust | H77: GOOD_R | I77: http://www.creationismonline.com/YEC/GOOD.xlsm | J77: 1500 | K77: 17 | L77: 75 | M77: Yes | N77: Ectasian | P77: 67 | Q77: 1 | X77: 67 | AE77: 67
A78: 76 | B78: Earth and Planetary Science Letters | C78: 2008 | D78: 275 | E78: 285-295 | G78: 100 million years of mantle geochemical history | H78: GOOD_S | I78: http://www.creationismonline.com/YEC/GOOD.xlsm | J78: 75 | K78: 4 | L78: 76 | M78: Yes | N78: Cretaceous | P78: 53 | Q78: 25 | X78: 53 | AE78: 53
A79: 77 | B79: Chemical Geology | C79: 1996 | D79: 130 | E79: 55-64 | G79: Osmium Isotopes | H79: Greater_01 | I79: http://www.creationismonline.com/YEC/Impossible.xlsm | J79: 1100 | K79: 15 | L79: 77 | M79: Yes | N79: Tonian | P79: 1 | Q79: 1 | Z79: 1 | AE79: 1
A80: 78 | B80: Chemical Geology | C80: 2004 | D80: 208 | E80: 89-118 | G80: Evolution Beneath the Kaapvaal Craton | H80: Greater_02 | I80: http://www.creationismonline.com/YEC/Impossible.xlsm | J80: 3000 | K80: 23 | L80: 78 | M80: Yes | N80: Neoarchean | O80: 178 | P80: 35 | Q80: 33 | R80: 11 | S80: 8 | W80: 86 | Z80: 127 | AE80: 213
A81: 79 | B81: Lithos | C81: 1999 | D81: 48 | E81: 184 | G81: The Age of Continental Roots | H81: Greater_05 | I81: http://www.creationismonline.com/YEC/Impossible.xlsm | J81: 1600 | K81: 18 | L81: 79 | M81: Yes | N81: Calymmian | P81: 8 | Q81: 6 | W81: 8 | AE81: 8
A82: 80 | B82: Contributions Mineral Petrology | C82: 2009 | D82: 157 | E82: 525-540 | G82: Diamond Formation Episodes | H82: Older_03 | I82: http://www.creationismonline.com/YEC/Impossible.xlsm | J82: 3800 | K82: 25 | L82: 80 | M82: Yes | N82: Paleoarchean | O82: 15 | P82: 2 | Q82: 2 | R82: 1 | W82: 14 | Z82: 3 | AE82: 17
A83: 81 | B83: Precambrian Research | C83: 2002 | D83: 118 | E83: 267-283 | G83: Archean Man Shield, West Africa | H83: Older_05 | I83: http://www.creationismonline.com/YEC/Impossible.xlsm | J83: 1400 | K83: 17 | L83: 81 | M83: Yes | N83: Ectasian | O83: 22 | P83: 10 | Q83: 9 | R83: 2 | S83: 2 | W83: 22 | Z83: 10 | AE83: 32
A84: 82 | B84: Geochimica et Cosmochimica Acta | C84: 1995 | D84: 59 | E84: 959-977 | G84: Re-Os, Sm-Nd, and Rb-Sr Isotope Evidence | H84: Older_06 | I84: http://www.creationismonline.com/YEC/Impossible.xlsm | J84: 2700 | K84: 22 | L84: 82 | M84: Yes | N84: Siderian | P84: 5 | Q84: 5 | R84: 1 | Y84: 1 | Z84: 4 | AE84: 5
A85: 83 | B85: Lithos | C85: 2011 | D85: 125 | E85: 405-422 | G85: Lithospheric Mantle Evolution | H85: Older_07 | I85: http://www.creationismonline.com/YEC/Impossible.xlsm | J85: 2200 | K85: 20 | L85: 83 | M85: Yes | N85: Orosirian | O85: 19 | P85: 2 | Q85: 1 | W85: 6 | Z85: 15 | AE85: 21
A86: 84 | B86: Chemical Geology | C86: 2000 | D86: 166 | E86: 85-101 | G86: Canadian Cordillera lithosphere | H86: Older_09 | I86: http://www.creationismonline.com/YEC/Impossible.xlsm | J86: 1120 | K86: 15 | L86: 84 | M86: Yes | N86: Tonian | O86: 4 | Z86: 4 | AE86: 4
A87: 85 | B87: International Journal Earth Science | C87: 2012 | D87: 101 | E87: 1091-1109 | G87: Upper Crust in North-East Australia | H87: Older_11 | I87: http://www.creationismonline.com/YEC/Impossible.xlsm | J87: 1550 | K87: 17 | L87: 85 | M87: Yes | N87: Ectasian | O87: 12 | P87: 3 | Q87: 3 | V87: 11 | AA87: 4 | AE87: 15
A88: 86 | B88: Lithos | C88: 2009 | D88: 112-S | E88: 1120-1132 | G88: Lithospheric Mantle and Diamonds | H88: Older_12 | I88: http://www.creationismonline.com/YEC/Impossible.xlsm | J88: 2700 | K88: 22 | L88: 86 | M88: Yes | N88: Siderian | P88: 2 | Q88: 2 | Z88: 2 | AE88: 2
A89: 87 | B89: Journal Of Petrology | C89: 2007 | D89: 48 | E89: 589-625 | G89: The Kaapvaal Cratonic Lithospheric Mantle | H89: To_Old_01 | I89: http://www.creationismonline.com/YEC/Impossible.xlsm | J89: 2800 | K89: 23 | L89: 87 | M89: Yes | N89: Neoarchean | O89: 25 | P89: 9 | Q89: 7 | R89: 7 | S89: 6 | V89: 6 | Z89: 10 | AA89: 18 | AE89: 34
A90: 88 | B90: Earth and Planetary Science Letters | C90: 2002 | D90: 203 | E90: 651-663 | G90: In Situ Analysis of Sulphides | H90: To_Old_03 | I90: http://www.creationismonline.com/YEC/Impossible.xlsm | J90: 1700 | K90: 18 | L90: 88 | M90: Yes | N90: Calymmian | O90: 44 | P90: 7 | Q90: 7 | R90: 2 | S90: 2 | W90: 18 | Z90: 33 | AE90: 51
A91: 89 | B91: Geochimica et Cosmochimica Acta | C91: 1989 | D91: 53 | E91: 1583-1595 | G91: Southern African Peridotite Xenoliths | H91: To_Old_04 | I91: http://www.creationismonline.com/YEC/Impossible.xlsm | J91: 3600 | K91: 25 | L91: 89 | M91: Yes | N91: Paleoarchean | O91: 3 | P91: 6 | Q91: 4 | R91: 1 | W91: 4 | X91: 5 | AE91: 9
A92: 90 | B92: Geochimica et Cosmochimica Acta | C92: 2008 | D92: 72 | E92: 5722-5756 | G92: Xenoliths from Kimberley, South Africa | H92: To_Old_05 | I92: http://www.creationismonline.com/YEC/Impossible.xlsm | J92: 2600 | K92: 22 | L92: 90 | M92: Yes | N92: Siderian | O92: 18 | P92: 11 | Q92: 10 | R92: 4 | S92: 4 | W92: 8 | Z92: 21 | AE92: 29
A93: 91 | B93: Chemical Geology | C93: 1985 | D93: 52 | E93: 249-271 | G93: Rb-Sr And Sm-Nd Studies | H93: To_Old_06 | I93: http://www.creationismonline.com/YEC/Impossible.xlsm | J93: 1600 | K93: 18 | L93: 91 | M93: Yes | N93: Calymmian | P93: 8 | Q93: 6 | R93: 4 | S93: 4 | Y93: 8 | AE93: 8
A94: 92 | B94: Journal of Volcanology and Geothermal Research | C94: 2002 | D94: 117 | E94: 285-296 | G94: Ion Microprobe U-Pb Dating | H94: Negative_03 | I94: http://www.creationismonline.com/YEC/Negative.xlsm | J94: 0.1 | K94: 1 | L94: 92 | M94: Yes | N94: Quaternary | P94: 20 | Q94: 5 | X94: 20 | AE94: 20
A95: 93 | B95: Mineralogy and Petrology | C95: 1999 | D95: 66 | E95: 171-191 | G95: Rn-Generated 206Pb | H95: Negative_06 | I95: http://www.creationismonline.com/YEC/Negative.xlsm | J95: 3000 | K95: 23 | L95: 93 | M95: Yes | N95: Neoarchean | P95: 12 | Q95: 11 | X95: 12 | AE95: 12
A96: 94 | B96: Quaternary Research | C96: 2007 | D96: 68 | E96: 96-110 | G96: 40Ar/39 Ar Age of a Tholeiitic Basalt | H96: Negative_07 | I96: http://www.creationismonline.com/YEC/Negative.xlsm | J96: 0.5 | K96: 1 | L96: 94 | M96: Yes | N96: Quaternary | O96: 9 | T96: 9 | AE96: 9
A97: 95 | B97: Chemical Geology | C97: 2008 | D97: 248 | E97: 40-61 | G97: Isotopic Systematics of Ultramafic Xenoliths | H97: Negative_08 | I97: http://www.creationismonline.com/YEC/Negative.xlsm | J97: 1200 | K97: 16 | L97: 95 | M97: Yes | N97: Stenian | O97: 2 | P97: 13 | Q97: 10 | X97: 11 | AA97: 3 | AD97: 1 | AE97: 15
A98: 96 | B98: Lithos | C98: 2004 | D98: 77 | E98: 453-472 | G98: Timing of Precambrian Melt Depletion | H98: Negative_19 | I98: http://www.creationismonline.com/YEC/Negative.xlsm | J98: 2610 | K98: 22 | L98: 96 | M98: Yes | N98: Siderian | O98: 21 | P98: 22 | Q98: 13 | R98: 2 | S98: 2 | V98: 6 | W98: 5 | X98: 18 | Z98: 7 | AA98: 7 | AE98: 43
A99: 97 | B99: Geochimica et Cosmochimica Acta | C99: 2002 | D99: 66 | E99: 1037–1050 | G99: Re-Os isotopes in mantle sulfides | H99: Negative_30 | I99: http://www.creationismonline.com/YEC/Negative.xlsm | J99: 3000 | K99: 23 | L99: 97 | M99: Yes | N99: Siderian | O99: 16 | P99: 22 | Q99: 22 | R99: 21 | S99: 21 | W99: 22 | Z99: 16 | AE99: 38
A100: 98 | B100: Earth and Planetary Science Letters | C100: 2012 | D100: 319-320 | E100: 197-206 | G100: U-Th-Pb Isotope Data | H100: 232_Th_02 | I100: http://www.creationismonline.com/YEC/Th-Pb.xlsm | J100: 3400 | K100: 24 | L100: 98 | M100: Yes | N100: Mesoarchean | P100: 49 | Q100: 49 | R100: 23 | S100: 17 | X100: 13 | AB100: 12 | AC100: 12 | AD100: 12 | AE100: 49
A101: 99 | B101: Lithology and Mineral Resources | C101: 2011 | D101: 46 | E101: 151-164 | G101: Rb-Sr and U-Pb Systematics | H101: 232_Th_05 | I101: http://www.creationismonline.com/YEC/Th-Pb.xlsm | J101: 1900 | K101: 19 | L101: 99 | M101: Yes | N101: Statherian | P101: 24 | Q101: 20 | R101: 2 | X101: 10 | AD101: 14 | AE101: 24
A102: 100 | B102: Mineral Deposita | C102: 2010 | D102: 45 | E102: 393-410 | G102: Cu-Pb-Zn-Ag Mineralisation | H102: 232_Th_06 | I102: http://www.creationismonline.com/YEC/Th-Pb.xlsm | J102: 520 | K102: 12 | L102: 100 | M102: Yes | N102: Cambrian | P102: 120 | Q102: 92 | R102: 49 | S102: 39 | X102: 48 | AB102: 35 | AC102: 19 | AD102: 18 | AE102: 120
A103: 101 | B103: Journal Of Geophysical Research | C103: 2011 | D103: 116 | E103: E12008 | G103: Uranium-Lead age of Baddeleyite | H103: 232_Th_07 | I103: http://www.creationismonline.com/YEC/Th-Pb.xlsm | J103: 113 | K103: 4 | L103: 101 | M103: Yes | N103: Cretaceous | O103: 7 | X103: 7 | AE103: 7
A104: 102 | B104: Contributions Mineral Petrology | C104: 2002 | D104: 144 | E104: 241-253 | G104: Sr-Nd-Pb Isotope Studies | H104: 232_Th_08 | I104: http://www.creationismonline.com/YEC/Th-Pb.xlsm | J104: 180 | K104: 5 | L104: 102 | M104: Yes | N104: Jurassic | P104: 14 | Q104: 12 | R104: 11 | S104: 11 | X104: 3 | AB104: 11 | AE104: 14
A105: 103 | B105: International Journal Earth Science | C105: 2002 | D105: 91 | E105: 91 | G105: SHRIMP U-Pb Geochronology | H105: 232_Th_10 | I105: http://www.creationismonline.com/YEC/Th-Pb.xlsm | J105: 1650 | K105: 18 | L105: 103 | M105: Yes | N105: Calymmian | P105: 1 | Q105: 1 | R105: 1 | AB105: 1 | AE105: 1
A106: 104 | B106: Economic Geology | C106: 2011 | D106: 106 | E106: 835–867 | G106: Beverley Uranium Deposit | H106: 232_Th_11 | I106: http://www.creationismonline.com/YEC/Th-Pb.xlsm | J106: 135 | K106: 4 | L106: 104 | M106: Yes | N106: Cretaceous | P106: 6 | Q106: 6 | R106: 3 | S106: 2 | AB106: 6 | AE106: 6
A107: 105 | B107: Geochimica et Cosmochimica Acta | C107: 1995 | D107: 59 | E107: 381-390 | G107: Isotopic Systematics of the Goalpara Ureilite | H107: Thorium_A | I107: http://www.creationismonline.com/YEC/Th-Pb.xlsm | J107: 4090 | K107: 26 | L107: 105 | M107: Yes | N107: Eoarchean | P107: 120 | Q107: 116 | R107: 77 | S107: 71 | X107: 42 | AB107: 37 | AD107: 41 | AE107: 120
A108: 106 | B108: Geochimica et Cosmochimica Acta | C108: 2010 | D108: 74 | E108: 1417-1435 | G108: Middle Atlas Peridotite Xenoliths | H108: Thorium_B | I108: http://www.creationismonline.com/YEC/Th-Pb.xlsm | J108: 20 | K108: 2 | L108: 106 | M108: Yes | N108: Neogene | P108: 20 | Q108: 3 | R108: 1 | S108: 1 | X108: 17 | AB108: 2 | AD108: 1 | AE108: 20
A109: 107 | B109: Geochimica et Cosmochimica Acta | C109: 1994 | D109: 58 | E109: 3155-3169 | G109: A Precise 232Th-208Pb Chronology | H109: Thorium_D | I109: http://www.creationismonline.com/YEC/Th-Pb.xlsm | J109: 555 | K109: 13 | L109: 107 | M109: Yes | N109: Ediacaran | P109: 175 | Q109: 152 | R109: 34 | S109: 20 | X109: 102 | AB109: 1 | AD109: 72 | AE109: 175
A110: 108 | B110: Geochimica et Cosmochimica Acta | C110: 1995 | D110: 59 | E110: 2319-2329 | G110: Age of the MET 78008 Ureilite | H110: Thorium_E | I110: http://www.creationismonline.com/YEC/Th-Pb.xlsm | J110: 4563 | K110: 29 | L110: 108 | M110: Yes | N110: Basin Groups | P110: 63 | Q110: 60 | R110: 32 | S110: 30 | X110: 19 | AB110: 16 | AD110: 28 | AE110: 63
A111: 109 | B111: Precambrian Research | C111: 2008 | D111: 163 | E111: 131-150 | G111: Proterozoic Eastern Mount Isa Block | H111: Diamonds_02 | I111: http://www.creationismonline.com/YEC/Good.xlsm | J111: 1550 | K111: 17 | L111: 109 | M111: Yes | N111: Ectasian | P111: 7 | Q111: 6 | R111: 2 | S111: 1 | T111: 7 | AE111: 7
A112: 110 | B112: Precambrian Research | C112: 1982 | D112: 17 | E112: 199--214 | G112: Zircon U-Pb Ages Of Guyana Greenstone | H112: Diamonds_03 | I112: http://www.creationismonline.com/YEC/Good.xlsm | J112: 2250 | K112: 20 | L112: 110 | M112: Yes | N112: Orosirian | P112: 10 | Q112: 10 | R112: 10 | S112: 10 | AC112: 10 | AE112: 10
A113: 111 | B113: Earth and Planetary Science Letters | C113: 1981 | D113: 55 | E113: 123-149 | G113: Metamorphic Rocks From Broken Hill | H113: Good_01 | I113: http://www.creationismonline.com/YEC/Good.xlsm | J113: 1500 | K113: 17 | L113: 111 | M113: Yes | N113: Ectasian | P113: 74 | Q113: 59 | T113: 74 | AE113: 74
A114: 112 | B114: Earth and Planetary Science Letters | C114: 1983 | D114: 63 | E114: 1-12 | G114: Presolar Ages In Allende Inclusions | H114: Good_02 | I114: http://www.creationismonline.com/YEC/Good.xlsm | J114: 4560 | K114: 29 | L114: 112 | M114: Yes | N114: Basin Groups | P114: 12 | Q114: 8 | T114: 12 | AE114: 12
A115: 113 | B115: Nature | C115: 1979 | D115: 277 | E115: 554-556 | G115: Gerontology Of The Allende Meteorite | H115: Good_03 | I115: http://www.creationismonline.com/YEC/Good.xlsm | J115: 4500 | K115: 29 | L115: 113 | M115: Yes | N115: Basin Groups | P115: 47 | Q115: 27 | R115: 1 | T115: 47 | AE115: 47
A116: 114 | B116: Geochimica et Cosmochimica Acta | C116: 2005 | D116: 69 | E116: 1253-1264 | G116: Argon Isotope Fractionation | H116: Good_06 | I116: http://www.creationismonline.com/YEC/Good.xlsm | J116: 2000 | K116: 19 | L116: 114 | M116: Yes | N116: Statherian | P116: 11 | Q116: 6 | T116: 11 | AE116: 11
A117: 115 | B117: Geochimica et Cosmochimica Acta | C117: 2006 | D117: 70 | E117: 2562-2576 | G117: Evaluation Of 40ar-39ar Quartz Ages | H117: Good_08 | I117: http://www.creationismonline.com/YEC/Good.xlsm | J117: 1030 | K117: 15 | L117: 115 | M117: Yes | N117: Tonian | P117: 29 | Q117: 19 | T117: 29 | AE117: 29
A118: 116 | C118: 1978 | F118: http://www.lpi.usra.edu/meetings/lpsc1978/pdf/1289.pdf | H118: Good_12 | I118: http://www.creationismonline.com/YEC/Good.xlsm | J118: 4420 | K118: 28 | L118: 116 | M118: Yes | N118: Nectarian | P118: 13 | Q118: 9 | X118: 3 | AA118: 4 | AB118: 3 | AD118: 3 | AE118: 13
A119: 117 | B119: Geochimica et Cosmochimica Acta | C119: 2000 | D119: 64 | E119: 717-732 | G119: African And Canadian Diamonds | H119: Very_Old_01 | I119: http://www.creationismonline.com/YEC/Good.xlsm | J119: 71 | K119: 3 | L119: 117 | M119: Yes | N119: Paleogene | P119: 21 | Q119: 17 | T119: 21 | AE119: 21
A120: 118 | B120: Meteoritics And Planetary Science | C120: 2005 | D120: 40 | E120: 1433-1454 | G120: Dhofar 300 and Dhofar 007 Eucrites | H120: Very_Old_02 | I120: http://www.creationismonline.com/YEC/Good.xlsm | J120: 4000 | K120: 26 | L120: 118 | M120: Yes | N120: Eoarchean | P120: 26 | Q120: 19 | T120: 26 | AE120: 26
A121: 119 | B121: Meteoritics And Planetary Science | C121: 1998 | D121: 33 | E121: 921-935 | G121: Argon-40-Argon-39 Age Determinations | H121: Very_Old_03 | I121: http://www.creationismonline.com/YEC/Good.xlsm | J121: 3220 | K121: 24 | L121: 119 | M121: Yes | N121: Mesoarchean | P121: 19 | Q121: 14 | T121: 19 | AE121: 19
A122: 120 | B122: Meteoritics And Planetary Science | C122: 2002 | D122: 37 | E122: 1797-1813 | G122: Northwest Africa 482 | H122: Very_Old_04 | I122: http://www.creationismonline.com/YEC/Good.xlsm | J122: 3750 | K122: 25 | L122: 120 | M122: Yes | N122: Paleoarchean | P122: 7 | Q122: 7 | T122: 7 | AE122: 7
A123: 121 | B123: Meteoritics And Planetary Science | C123: 2002 | D123: 37 | E123: 371- 394 | G123: Northwest Africa 032 | H123: Very_Old_05 | I123: http://www.creationismonline.com/YEC/Good.xlsm | J123: 2800 | K123: 23 | L123: 121 | M123: Yes | N123: Neoarchean | P123: 3 | Q123: 3 | T123: 3 | AE123: 3
A124: 122 | B124: Meteoritics And Planetary Science | C124: 1998 | D124: 33 | E124: 31-48 | G124: Eagles Nest And Lewis Cliff 88763 | H124: Very_Old_06 | I124: http://www.creationismonline.com/YEC/Good.xlsm | J124: 4500 | K124: 29 | L124: 122 | M124: Yes | N124: Basin Groups | P124: 2 | Q124: 1 | T124: 2 | AE124: 2
A125: 123 | B125: Geochimica et Cosmochimica Acta | C125: 2010 | D125: 74 | E125: 3292-3306 | G125: Diamonds From Ellendale | H125: Very_Old_07 | I125: http://www.creationismonline.com/YEC/Good.xlsm | J125: 1426 | K125: 17 | L125: 123 | M125: Yes | N125: Ectasian | O125: 12 | P125: 2 | Q125: 2 | W125: 8 | Z125: 6 | AE125: 14
A126: 124 | B126: Geochimica et Cosmochimica Acta | C126: 1983 | D126: 47 | E126: 2217-2224 | G126: K-Ar Dating Of Diamonds | H126: Very_Old_08 | I126: http://www.creationismonline.com/YEC/Good.xlsm | J126: 150 | K126: 4 | L126: 124 | M126: Yes | N126: Cretaceous | P126: 8 | Q126: 6 | U126: 8 | AE126: 8
A127: 125 | B127: Geochimica et Cosmochimica Acta | C127: 2008 | D127: 72 | E127: 5819-5837 | G127: Young Martian Basalts | H127: Very_Old_09 | I127: http://www.creationismonline.com/YEC/Good.xlsm | J127: 4000 | K127: 26 | L127: 125 | M127: Yes | N127: Eoarchean | P127: 28 | Q127: 26 | T127: 28 | AE127: 28
A128: 126 | B128: Lithos | C128: 2003 | D128: 71 | E128: 323- 336 | G128: Re-Os Systematics | H128: Very_Old_10 | I128: http://www.creationismonline.com/YEC/Good.xlsm | J128: 3100 | K128: 23 | L128: 126 | M128: Yes | N128: Neoarchean | O128: 22 | P128: 5 | Q128: 5 | R128: 2 | S128: 2 | W128: 21 | Z128: 6 | AE128: 27
A129: 127 | B129: Geochimica et Cosmochimica Acta | C129: 1997 | D129: 61 | E129: 3835-3850 | G129: The Martian Meteorite Alh84001 | H129: Very_Old_12 | I129: http://www.creationismonline.com/YEC/Good.xlsm | J129: 3900 | K129: 25 | L129: 127 | M129: Yes | N129: Paleoarchean | P129: 9 | Q129: 5 | T129: 9 | AE129: 9
A130: 128 | B130: Geochimica et Cosmochimica Acta | C130: 2010 | D130: 74 | E130: 5368-5381 | G130: The Slave Craton, Canada | H130: Very_Old_13 | I130: http://www.creationismonline.com/YEC/Good.xlsm | J130: 2700 | K130: 22 | L130: 128 | M130: Yes | N130: Siderian | O130: 23 | P130: 2 | Q130: 2 | W130: 23 | Z130: 2 | AE130: 25
A131: 129 | B131: Earth and Planetary Science Letters | C131: 1972 | D131: 17 | E131: 36-51 | G131: U-Th-Pb Systematics In Lunar Highland Samples | H131: Very_Old_15 | I131: http://www.creationismonline.com/YEC/Good.xlsm | J131: 4500 | K131: 29 | L131: 129 | M131: Yes | N131: Basin Groups | P131: 81 | Q131: 61 | X131: 21 | AB131: 20 | AC131: 20 | AD131: 20 | AE131: 81
A132: 130 | B132: Precambrian Research | C132: 1992 | D132: 57 | E132: 91-119 | G132: A 40Ar/39Ar Geochronological Study | H132: Very_Old_16 | I132: http://www.creationismonline.com/YEC/Good.xlsm | J132: 3300 | K132: 24 | L132: 130 | M132: Yes | N132: Mesoarchean | O132: 3 | P132: 23 | Q132: 20 | T132: 26 | AE132: =SUM(T132:AD132) -> 26
A133: 131 | B133: Meteoritics And Planetary Science | C133: 2004 | D133: 39 | E133: 2033-2041 | G133: Ion microprobe U-Th-Pb dating | H133: Iso_Plot_001 | I133: http://www.creationismonline.com/YEC/Plot_Index.xlsm | J133: 1530 | K133: 17 | L133: 131 | M133: Yes | N133: Ectasian | P133: 43 | Q133: 29 | R133: 12 | S133: 6 | X133: 16 | AB133: 17 | AD133: 10 | AE133: 43
A134: 132 | B134: Meteoritics And Planetary Science | C134: 2007 | D134: 42 | E134: 1337-1350 | G134: Pb-Isotopic Dates From Estacado | H134: Iso_Plot_002 | I134: http://www.creationismonline.com/YEC/Plot_Index.xlsm | J134: 4527 | K134: 29 | L134: 132 | M134: Yes | N134: Basin Groups | P134: 28 | Q134: 3 | X134: 27 | AD134: 1 | AE134: 28
A135: 133 | B135: Meteoritics And Planetary Science | C135: 2003 | D135: 38 | E135: 1697-1703 | G135: Ion Microprobe U-Th-Pb Dating | H135: Iso_Plot_003 | I135: http://www.creationismonline.com/YEC/Plot_Index.xlsm | J135: 4018 | K135: 26 | L135: 133 | M135: Yes | N135: Eoarchean | P135: 9 | Q135: 8 | AB135: 3 | AD135: 6 | AE135: 9
A136: 134 | B136: Journal Of Petrology | C136: 1998 | D136: 39 | E136: 1285-1306 | G136: Tracing the Indian Ocean Mantle | H136: Iso_Plot_004 | I136: http://www.creationismonline.com/YEC/Plot_Index.xlsm | J136: 125 | K136: 4 | L136: 134 | M136: Yes | N136: Cretaceous | P136: 134 | Q136: 97 | R136: 38 | S136: 29 | X136: 59 | AB136: 45 | AD136: 30 | AE136: 134
A137: 135 | B137: Journal Of Petrology | C137: 2004 | D137: 45 | E137: 555-607 | G137: Nature of the Source Regions | H137: Iso_Plot_006 | I137: http://www.creationismonline.com/YEC/Plot_Index.xlsm | J137: 25 | K137: 2 | L137: 135 | M137: Yes | N137: Neogene | P137: 44 | Q137: 30 | R137: 13 | S137: 7 | X137: 13 | AB137: 13 | AC137: 6 | AD137: 12 | AE137: 44
A138: 136 | B138: Precambrian Research | C138: 2002 | D138: 117 | E138: 119-143 | G138: 207Pb-206Pb And 40Ar-39Ar Ages SW Montana | H138: Iso_Plot_008 | I138: http://www.creationismonline.com/YEC/Plot_Index.xlsm | J138: 1740 | K138: 18 | L138: 136 | M138: Yes | N138: Calymmian | P138: 7 | Q138: 4 | X138: 7 | AE138: 7
A139: 137 | B139: Precambrian Research | C139: 1999 | D139: 95 | E139: 167-185 | G139: U-Pb And Pb-Pb Isotopic Studies | H139: Iso_Plot_010 | I139: http://www.creationismonline.com/YEC/Plot_Index.xlsm | J139: 25 | K139: 2 | L139: 137 | M139: Yes | N139: Neogene | P139: 19 | Q139: 1 | X139: 19 | AE139: 19
A140: 138 | B140: Precambrian Research | C140: 1988 | D140: 38 | E140: 147-164 | G140: New U-Pb Zircon Chronology | H140: Iso_Plot_011 | I140: http://www.creationismonline.com/YEC/Plot_Index.xlsm | J140: 90 | K140: 4 | L140: 138 | M140: Yes | N140: Cretaceous | P140: 9 | Q140: 8 | X140: 9 | AE140: 9
A141: 139 | B141: Meteoritics And Planetary Science | C141: 2000 | D141: 35 | E141: 341-346 | G141: Uranium-Thorium-Lead Dating | H141: Iso_Plot_012 | I141: http://www.creationismonline.com/YEC/Plot_Index.xlsm | J141: 225 | K141: 6 | L141: 139 | M141: Yes | N141: Triassic | P141: 26 | Q141: 19 | R141: 2 | X141: 13 | AD141: 13 | AE141: 26
A142: 140 | B142: Journal Of Petrology | C142: 2001 | D142: 42 | E142: 731-763 | G142: Garnet Granulite Xenoliths | H142: Iso_Plot_013 | I142: http://www.creationismonline.com/YEC/Plot_Index.xlsm | J142: 2000 | K142: 19 | L142: 140 | M142: Yes | N142: Statherian | P142: 38 | Q142: 36 | R142: 28 | S142: 17 | X142: 1 | AD142: 37 | AE142: 38
A143: 141 | B143: Chemical Geology | C143: 2009 | D143: 259 | E143: 143-151 | G143: Pb-Pb Dating Of Chondrules | H143: Iso_Plot_014 | I143: http://www.creationismonline.com/YEC/Plot_Index.xlsm | J143: 4565 | K143: 29 | L143: 141 | M143: Yes | N143: Basin Groups | P143: 41 | Q143: 15 | X143: 41 | AE143: 41
A144: 142 | B144: Geochimica et Cosmochimica Acta | C144: 2007 | D144: 71 | E144: 1583-1604 | G144: Pb-Pb Dating Constraints | H144: Iso_Plot_015 | I144: http://www.creationismonline.com/YEC/Plot_Index.xlsm | J144: 4568 | K144: 30 | L144: 142 | M144: Yes | N144: Cryptic | P144: 90 | Q144: 50 | X144: 90 | AE144: 90
A145: 143 | B145: Earth and Planetary Science Letters | C145: 1983 | D145: 62 | E145: 132-146 | G145: 40ar/39ar And U-Th-Pb Dating | H145: Iso_Plot_019 | I145: http://www.creationismonline.com/YEC/Plot_Index.xlsm | J145: 4500 | K145: 29 | L145: 143 | M145: Yes | N145: Basin Groups | P145: 14 | Q145: 13 | T145: 4 | X145: 10 | AE145: 14
A146: 144 | B146: Geosphere | C146: 2010 | D146: 6 | E146: 663-690 | F146: http://geosphere.gsapubs.org/content/suppl/2010/09/29/6.5.663.DC1/530_supp1.xls | H146: Very_Old_A | I146: http://www.creationismonline.com/YEC/Very_Old_A.xls | J146: 100 | K146: 4 | L146: 144 | M146: Yes | N146: Cretaceous | P146: 241 | Q146: 241 | R146: 239 | S146: 239 | AB146: 241 | AE146: 241
A147: 145 | B147: Geosphere | C147: 2012 | D147: 8 | E147: 265-291 | F147: http://geosphere.gsapubs.org/content/suppl/2012/03/19/GES00728.1.DC1/GS728_SuppT02.xls | H147: Very_Old_A_6 | I147: http://www.creationismonline.com/YEC/Very_Old_A_6.xls | J147: 20 | K147: 2 | L147: 145 | M147: Yes | N147: Neogene | P147: 210 | Q147: 24 | X147: 210 | AE147: 210
A148: 147 | B148: Nature | C148: 2012 | D148: 485 | E148: 627–630 | F148: http://www.nature.com/nature/journal/v485/n7400/extref/nature11140-s3.xls | H148: Very_Old_A_8 | I148: http://www.creationismonline.com/YEC/Very_Old_A_8.xls | J148: 3500 | K148: 24 | L148: 147 | M148: Yes | N148: Mesoarchean | O148: 3 | P148: 21 | Q148: 11 | R148: 1 | AB148: 24 | AE148: 24
A149: 148 | B149: http://pubs.usgs.gov/of/1987/0259/report.pdf | C149: 2008 | D149: 1142 | E149: 1--37 | F149: http://pubs.usgs.gov/of/2008/1142/tables/table04.xls | H149: Very_Old_A_9 | I149: http://www.creationismonline.com/YEC/Very_Old_A_9.xls | J149: 100 | K149: 4 | L149: 148 | M149: Yes | N149: Cretaceous | P149: 116 | Q149: 74 | R149: 46 | S149: 34 | X149: 40 | AB149: 40 | AD149: 36 | AE149: 116
A150: 149 | B150: http://www.geo.uu.nl/~kikeb/thesis/ | C150: 2003 | D150: 1 | E150: 1--60 | F150: http://www.geo.uu.nl/~kikeb/thesis/database/upb/KB746.xls | H150: Very_Old_B | I150: http://www.creationismonline.com/YEC/Very_Old_B.xls | J150: 2850 | K150: 23 | L150: 149 | M150: Yes | N150: Neoarchean | P150: 31 | Q150: 24 | AB150: 31 | AE150: 31
A151: 150 | B151: www.nature.com/nature/journal/v476/n7361/extref/nature10321-s2.xls | G151: Nature Volume 476, Pages 434–437 | H151: Very_Old_B_2 | I151: http://www.creationismonline.com/YEC/Very_Old_B_2.xls | J151: 200 | K151: 5 | L151: 150 | M151: Yes | N151: Jurassic | P151: 175 | Q151: 99 | X151: 175 | AE151: 175
A152: 151 | B152: Nature | C152: 2005 | D152: 434 | E152: 851-856 | F152: www.nature.com/nature/journal/v434/n7035/extref/nature03402-s1.xls | G152: Nature, 2005, Volume 434, Pages 851-856 | H152: Very_Old_B_3 | I152: http://www.creationismonline.com/YEC/Very_Old_B_3.xls | J152: 0.55 | K152: 1 | L152: 151 | M152: Yes | N152: Quaternary | P152: 93 | Q152: 56 | X152: 93 | AE152: 93
A153: 152 | B153: Pb-isotope data base | C153: 1987 | E153: 1--46 | F153: http://pubs.usgs.gov/of/1987/0259/report.pdf | H153: Very_Old_C_2 | I153: http://www.creationismonline.com/YEC/Very_Old_C_2.xls | L153: 152 | M153: Yes | N153: Paleogene | P153: 207 | Q153: 47 | X153: 207 | AE153: 207
A154: 153 | B154: Geosphere | C154: 2007 | D154: 3 | E154: 683-703 | F154: http://geosphere.gsapubs.org/content/suppl/2009/02/18/3.6.683.DC1/00138_App3.xls | H154: Very_Old_E | I154: http://www.creationismonline.com/YEC/Very_Old_E.xls | J154: 481 | K154: 11 | L154: 153 | M154: Yes | N154: Ordovician | P154: 178 | Q154: 174 | R154: 97 | S154: 25 | X154: 70 | AB154: 98 | AD154: 10 | AE154: 178
A155: 154 | B155: Journal of Petrology | C155: 2011 | D155: 52 | E155: 1143-1183 | F155: http://petrology.oxfordjournals.org/content/suppl/2011/05/11/egr022.DC1/Appendix_table_1.xls | H155: Very_Old_F | I155: http://www.creationismonline.com/YEC/Very_Old_F.xls | J155: 7 | K155: 2 | L155: 154 | M155: Yes | N155: Neogene | P155: 10 | X155: 10 | AE155: 10
A156: 155 | B156: Journal Of Petrology | C156: 2005 | D156: 46 | E156: 3–32 | F156: http://petrology.oxfordjournals.org/content/suppl/2004/09/24/egh060.DC1/Table_3.xls | H156: Very_Old_G | I156: http://www.creationismonline.com/YEC/Very_Old_G.xls | J156: 0.045 | K156: 1 | L156: 155 | M156: Yes | N156: Quaternary | P156: 45 | Q156: 45 | R156: 45 | S156: 44 | AB156: 45 | AE156: 45
A157: 156 | B157: Journal Of Petrology | C157: 2007 | D157: 48 | E157: 711–728 | F157: http://petrology.oxfordjournals.org/content/suppl/2007/02/14/egl079.DC1/egl079-jpet-may-06-0042-File004.xls | H157: Very_Old_H | I157: http://www.creationismonline.com/YEC/Very_Old_H.xls | J157: 1250 | K157: 16 | L157: 156 | M157: Yes | N157: Stenian | P157: 105 | Q157: 17 | X157: 105 | AE157: 105
A158: 157 | B158: Journal Of Petrology | C158: 2008 | D158: 49 | E158: 1069-1096 | F158: http://petrology.oxfordjournals.org/content/suppl/2008/03/20/egn018.DC1/jpet-jun-07-0081-File027.xls | H158: Very_Old_M | I158: http://www.creationismonline.com/YEC/Very_Old_M.xls | J158: 84 | K158: 4 | L158: 157 | M158: Yes | N158: Cretaceous | P158: 34 | Q158: 20 | X158: 34 | AE158: 34
A159: 158 | B159: Journal Of Petrology | C159: 2007 | D159: 48 | E159: 43-77 | F159: http://petrology.oxfordjournals.org/content/suppl/2006/12/23/egl053.DC1/Electronic_Appendices_1-5.xls | H159: Very_Old_N | I159: http://www.creationismonline.com/YEC/Very_Old_N.xls | J159: 20 | K159: 2 | L159: 158 | M159: Yes | N159: Neogene | P159: 16 | Q159: 9 | X159: 16 | AE159: 16
A160: 159 | B160: Journal Of Petrology | C160: 2007 | D160: 48 | E160: 2261-2287 | F160: http://petrology.oxfordjournals.org/content/suppl/2007/11/12/egm059.DC1/jpet-jul-07-0097-File018.xls | H160: Very_Old_S | I160: http://www.creationismonline.com/YEC/Very_Old_S.xls | J160: 16 | K160: 2 | L160: 159 | M160: Yes | N160: Neogene | P160: 28 | X160: 28 | AE160: 28
A161: 160 | B161: Journal of Petrology | C161: 2000 | D161: 41 | E161: 951-966 | F161: http://petrology.oxfordjournals.org/content/suppl/2000/06/26/41.7.951.DC1/egd056SUPPLEM.xls | H161: Very_Old_T | I161: http://www.creationismonline.com/YEC/Very_Old_T.xls | J161: 56 | K161: 3 | L161: 160 | M161: Yes | N161: Paleogene | P161: 29 | Q161: 29 | X161: 29 | AE161: 29
A162: 161 | B162: Journal Of Petrology | C162: 2004 | D162: 45 | E162: 1069–1088 | F162: http://petrology.oxfordjournals.org/content/suppl/2004/04/19/45.5.1069.DC1/egh004supp.xls | H162: Very_Old_U | I162: http://www.creationismonline.com/YEC/Very_Old_U.xls | J162: 11 | K162: 2 | L162: 161 | M162: Yes | N162: Neogene | P162: 17 | X162: 17 | AE162: 17
A163: 162 | B163: Journal of Petrology | C163: 2010 | D163: 51 | E163: 993-1026 | F163: http://petrology.oxfordjournals.org/content/suppl/2010/03/31/egq009.DC1/ElecApp_A12_TephraFromOutsideIzuBonin.xls | H163: Very_Old_V | I163: http://www.creationismonline.com/YEC/Very_Old_V.xls | J163: 50 | K163: 3 | L163: 162 | M163: Yes | N163: Paleogene | P163: 38 | Q163: 16 | X163: 38 | AE163: 38
A164: 163 | B164: Journal Of Petrology | C164: 2007 | D164: 48 | E164: 2063-2091 | F164: http://petrology.oxfordjournals.org/content/suppl/2007/08/13/egm050v1.DC1/jpet-jul-07-0104-File002.xls | H164: Very_Old_W | I164: http://www.creationismonline.com/YEC/Very_Old_W.xls | J164: 10 | K164: 2 | L164: 163 | M164: Yes | N164: Neogene | P164: 18 | Q164: 18 | X164: 18 | AE164: 18
A165: 164 | B165: Journal Of Petrology | C165: 1999 | D165: 40 | E165: 873–908 | F165: http://petrology.oxfordjournals.org/content/suppl/1999/12/17/40.6.873.DC1/morriso.xls | H165: Very_Old_X | I165: http://www.creationismonline.com/YEC/Very_Old_X.xls | J165: 60 | K165: 3 | L165: 164 | M165: Yes | N165: Paleogene | P165: 7 | Q165: 6 | X165: 7 | AE165: 7
A166: 165 | B166: Nature Geoscience | C166: 2012 | D166: 5 | E166: 289-294 | F166: www.nature.com/ngeo/journal/v5/n4/extref/ngeo1432-s2.xls | G166: The East African Rift | H166: Very_Old_Z | I166: http://www.creationismonline.com/YEC/Very_Old_Z.xls | J166: 25 | K166: 2 | L166: 165 | M166: Yes | N166: Neogene | P166: 13 | X166: 13 | AE166: 13
A167: 166 | B167: Contributions Mineral Petrology | C167: 1985 | D167: 90 | E167: 162-171 | G167: Pre-Hercynian mantle lead transfer | H167: Excellent_01 | I167: http://www.creationismonline.com/YEC/Excellent.xlsm | J167: 3000 | K167: 23 | L167: 166 | M167: Yes | N167: Neoarchean | P167: 16 | Q167: 16 | X167: 16 | AE167: 16
A168: 167 | B168: Mineralogy and Petrology | C168: 1993 | D168: 47 | E168: 103-126 | G168: Sr, Nd and Pb Isotopic Compositions | H168: Excellent_02 | I168: http://www.creationismonline.com/YEC/Excellent.xlsm | J168: 2 | K168: 1 | L168: 167 | M168: Yes | N168: Quaternary | P168: 11 | X168: 11 | AE168: 11
A169: 168 | B169: Contributions Mineral Petrology | C169: 1984 | D169: 85 | E169: 376-390 | G169: Pb isotopic and REE geochemistry | H169: Excellent_03 | I169: http://www.creationismonline.com/YEC/Excellent.xlsm | J169: 7 | K169: 2 | L169: 168 | M169: Yes | N169: Neogene | P169: 6 | X169: 6 | AE169: 6
A170: 169 | B170: Mineralium Deposita | C170: 1999 | D170: 34 | E170: 273-283 | G170: Damaran-Lufilian Fold Belt of Central Africa | H170: Excellent_04 | I170: http://www.creationismonline.com/YEC/Excellent.xlsm | J170: 680 | K170: 13 | L170: 169 | M170: Yes | N170: Ediacaran | P170: 18 | Q170: 18 | X170: 18 | AE170: 18
A171: 170 | B171: Chinese Journal Of Geochemistry | C171: 1997 | D171: 16 | E171: 80-85 | G171: Bayan Obo Deposit | H171: Excellent_05 | I171: http://www.creationismonline.com/YEC/Excellent.xlsm | J171: 1500 | K171: 17 | L171: 170 | M171: Yes | N171: Ectasian | P171: 8 | Q171: 8 | X171: 8 | AE171: 8
A172: 171 | B172: Isotope Geoscience | C172: 1983 | D172: 1 | E172: 23-38 | G172: U-Ph And Ph-Pb Dating Of Kimberlites | H172: Excellent_06 | I172: http://www.creationismonline.com/YEC/Excellent.xlsm | J172: 100 | K172: 4 | L172: 171 | M172: Yes | N172: Cretaceous | P172: 14 | Q172: 9 | X172: 14 | AE172: 14
A173: 173 | B173: Earth and Planetary Science Letters | C173: 1989 | D173: 94 | E173: 78-96 | G173: Cenozoic-Cretaceous Magmatism | H173: Excellent_08 | I173: http://www.creationismonline.com/YEC/Excellent.xlsm | J173: 31 | K173: 3 | L173: 173 | M173: Yes | N173: Paleogene | P173: 25 | Q173: 1 | X173: 25 | AE173: 25
A174: 174 | B174: Chemical Geology | C174: 2006 | D174: 233 | E174: 1-45 | G174: Lead Isotope Planetary Profiling | H174: Excellent_09 | I174: http://www.creationismonline.com/YEC/Excellent.xlsm | J174: 3500 | K174: 24 | L174: 174 | M174: Yes | N174: Mesoarchean | P174: 13 | Q174: 10 | X174: 13 | AE174: 13
A175: 175 | B175: Chemical Geology | C175: 2007 | D175: 236 | E175: 27-41 | G175: U-Pb Step-Leaching Ages | H175: Excellent_10 | I175: http://www.creationismonline.com/YEC/Excellent.xlsm | J175: 2100 | K175: 20 | L175: 175 | M175: Yes | N175: Orosirian | P175: 31 | Q175: 16 | R175: 3 | S175: 1 | X175: 18 | AD175: 13 | AE175: 31
A176: 176 | B176: Chemical Geology | C176: 1987 | D176: 66 | E176: 193-208 | G176: Pb-Pb Isotope Systematics | H176: Excellent_11 | I176: http://www.creationismonline.com/YEC/Excellent.xlsm | J176: 2700 | K176: 22 | L176: 176 | M176: Yes | N176: Siderian | P176: 44 | Q176: 31 | X176: 44 | AE176: 44
A177: 177 | B177: Chemical Geology | C177: 1991 | D177: 93 | E177: 231-243 | G177: Pb Isotopic Systematics Of Volcanic Rocks | H177: Excellent_12 | I177: http://www.creationismonline.com/YEC/Excellent.xlsm | J177: 16 | K177: 2 | L177: 177 | M177: Yes | N177: Neogene | P177: 41 | X177: 41 | AE177: 41
A178: 178 | B178: Earth and Planetary Science Letters | C178: 1989 | D178: 94 | E178: 236-244 | G178: U/Pb Whole-Rock And Mineral Dating | H178: Excellent_13 | I178: http://www.creationismonline.com/YEC/Excellent.xlsm | J178: 348 | K178: 8 | L178: 178 | M178: Yes | N178: Carboniferous | P178: 13 | Q178: 3 | X178: 13 | AE178: 13
A179: 179 | B179: Earth and Planetary Science Letters | C179: 1980 | D179: 47 | E179: 370-382 | G179: Speculations About The Age Of The Earth | H179: Excellent_14 | I179: http://www.creationismonline.com/YEC/Excellent.xlsm | J179: 4580 | K179: 30 | L179: 179 | M179: Yes | N179: Cryptic | P179: 56 | Q179: 49 | X179: 56 | AE179: 56
A180: 180 | B180: Earth and Planetary Science Letters | C180: 1979 | D180: 42 | E180: 368-378 | G180: Rb-Sr And U-Th-Pb Isotopic Study | H180: Excellent_15 | I180: http://www.creationismonline.com/YEC/Excellent.xlsm | J180: 2000 | K180: 19 | L180: 180 | M180: Yes | N180: Statherian | P180: 12 | Q180: 7 | X180: 12 | AE180: 12
A181: 181 | B181: Earth and Planetary Science Letters | C181: 2006 | D181: 244 | E181: 251-269 | G181: The South Pacific Superplume Activity | H181: Excellent_17 | I181: http://www.creationismonline.com/YEC/Excellent.xlsm | J181: 33 | K181: 3 | L181: 181 | M181: Yes | N181: Paleogene | P181: 23 | Q181: 6 | X181: 23 | AE181: 23
A182: 182 | B182: Gondwana Research | C182: 2008 | D182: 14 | E182: 644-662 | G182: Geochronological Problems | H182: Excellent_20 | I182: http://www.creationismonline.com/YEC/Excellent.xlsm | J182: 2000 | K182: 19 | L182: 182 | M182: Yes | N182: Statherian | P182: 8 | X182: 8 | AE182: 8
A183: 183 | B183: Geochemistry And Geophysics Geosystems | C183: 2006 | D183: 7 | E183: 1-29 | G183: Contribution Of Slab Melting | H183: Excellent_21 | I183: http://www.creationismonline.com/YEC/Excellent.xlsm | J183: 25 | K183: 2 | L183: 183 | M183: Yes | N183: Neogene | P183: 44 | Q183: 30 | X183: 44 | AE183: 44
A184: 184 | B184: Earth and Planetary Science Letters | C184: 1980 | D184: 46 | E184: 221-232 | G184: Lead Isotopic Study Of Young Volcanic Rocks | H184: Excellent_23 | I184: http://www.creationismonline.com/YEC/Excellent.xlsm | J184: 1700 | K184: 18 | L184: 184 | M184: Yes | N184: Calymmian | P184: 172 | Q184: 43 | X184: 172 | AE184: 172
A185: 185 | B185: Gondwana Research | C185: 2007 | D185: 11 | E185: 69-91 | G185: Sm-Nd, Rb-Sr, And Pb-Pb Isotopic Evidence | H185: Excellent_25 | I185: http://www.creationismonline.com/YEC/Excellent.xlsm | J185: 2700 | K185: 22 | L185: 185 | M185: Yes | N185: Siderian | P185: 33 | Q185: 33 | X185: 33 | AE185: 33
A186: 186 | B186: Gondwana Research | C186: 2007 | D186: 11 | E186: 382-395 | G186: High Precision U-Pb Geochronology | H186: Excellent_26 | I186: http://www.creationismonline.com/YEC/Excellent.xlsm | J186: 28 | K186: 2 | L186: 186 | M186: Yes | N186: Neogene | P186: 5 | X186: 5 | AE186: 5
A187: 187 | B187: Geochemistry And Geophysics Geosystems | C187: 2006 | D187: 7 | E187: 1-29 | G187: Sr-Nd-Pb-O Isotopic Constraints | H187: Excellent_28 | I187: http://www.creationismonline.com/YEC/Excellent.xlsm | J187: 1300 | K187: 16 | L187: 187 | M187: Yes | N187: Stenian | P187: 16 | Q187: 12 | R187: 6 | S187: 6 | X187: 6 | AB187: 6 | AD187: 4 | AE187: 16
A188: 188 | B188: Contributions Mineral Petrology | C188: 1993 | D188: 114 | E188: 171-188 | G188: Sr, Nd And Pb Isotope Evidence | H188: Excellent_29 | I188: http://www.creationismonline.com/YEC/Excellent.xlsm | J188: 248 | K188: 6 | L188: 188 | M188: Yes | N188: Triassic | P188: 22 | Q188: 14 | X188: 22 | AE188: 22
A189: 189 | B189: Nature | C189: 1994 | D189: 368 | E189: 514-519 | G189: Lead Isotope Ratios In Arc Magams | H189: Excellent_30 | I189: http://www.creationismonline.com/YEC/Excellent.xlsm | J189: 0.0025 | K189: 1 | L189: 189 | M189: Yes | N189: Quaternary | P189: 23 | X189: 23 | AE189: 23
A190: 190 | B190: Earth and Planetary Science Letters | C190: 1982 | D190: 59 | E190: 327-342 | G190: Correlated Nd, Sr And Pb Isotope Variations | H190: Excellent_32 | I190: http://www.creationismonline.com/YEC/Excellent.xlsm | J190: 70 | K190: 3 | L190: 190 | M190: Yes | N190: Paleogene | P190: 9 | Q190: 9 | X190: 9 | AE190: 9
A191: 191 | B191: Earth and Planetary Science Letters | C191: 1985 | D191: 76 | E191: 57-70 | G191: Sr, Nd And Pb Isotopes In Minor Elements | H191: Excellent_33 | I191: http://www.creationismonline.com/YEC/Excellent.xlsm | J191: 1000 | K191: 15 | L191: 191 | M191: Yes | N191: Tonian | P191: 19 | Q191: 19 | X191: 19 | AE191: 19
A192: 192 | B192: Geological Society Of London | C192: 2004 | D192: 229 | E192: 133-150 | G192: Pin Procking The Elephant | H192: Excellent_34 | I192: http://www.creationismonline.com/YEC/Excellent.xlsm | J192: 3000 | K192: 23 | L192: 192 | M192: Yes | N192: Neoarchean | AE192: 0
A193: 193 | B193: Journal of Petrology | C193: 2011 | D193: 52 | E193: 401-430 | G193: Continental Intraplate Volcanism | H193: Excellent_36 | I193: http://www.creationismonline.com/YEC/Excellent.xlsm | J193: 6 | K193: 2 | L193: 193 | M193: Yes | N193: Neogene | P193: 5 | X193: 5 | AE193: 5
A194: 194 | B194: Journal Of Petrology | C194: 1998 | D194: 39 | E194: 1847-1864 | G194: Geochemical And Nd, Pb, And Sr Isotope Data | H194: Excellent_37 | I194: http://www.creationismonline.com/YEC/Excellent.xlsm | J194: 60 | K194: 3 | L194: 194 | M194: Yes | N194: Paleogene | P194: 15 | Q194: 1 | X194: 15 | AE194: 15
A195: 195 | B195: Ore Geology Reviews | C195: 2007 | D195: 31 | E195: 337-359 | G195: Isotopic Characteristics Of The Jinding Zn-Pb Deposit | H195: Excellent_38 | I195: http://www.creationismonline.com/YEC/Excellent.xlsm | J195: 68 | K195: 3 | L195: 195 | M195: Yes | N195: Paleogene | P195: 94 | Q195: 47 | X195: 94 | AE195: 94
A196: 196 | B196: Geochimica et Cosmochimica Acta | C196: 1956 | D196: 10 | E196: 230-237 | G196: Age of meteorites and the earth | H196: Excellent_40 | I196: http://www.creationismonline.com/YEC/Excellent.xlsm | J196: 4500 | K196: 29 | L196: 196 | M196: Yes | N196: Basin Groups | P196: 5 | Q196: 2 | X196: 5 | AE196: =SUM(T196:AD196) -> 5
A197: 197 | B197: Earth and Planetary Science Letters | C197: 2012 | D197: 337-338 | E197: 164-173 | G197: Re-Os Isotopes | H197: Excellent_42 | I197: http://www.creationismonline.com/YEC/Excellent.xlsm | J197: 131 | K197: 4 | L197: 197 | M197: Yes | N197: Cretaceous | P197: 14 | Q197: 11 | X197: 14 | AE197: 14
A198: 198 | B198: International Geology Review | C198: 2003 | D198: 45 | E198: 780-797 | G198: Geochemistry of Lavas from Mauritius | H198: Excellent_43 | I198: http://www.creationismonline.com/YEC/Excellent.xlsm | J198: 8 | K198: 2 | L198: 198 | M198: Yes | N198: Neogene | P198: 9 | X198: 9 | AE198: 9
A199: 199 | B199: Geochemistry And Geophysics Geosystems | C199: 2005 | D199: 6 | E199: 11 | G199: Isotope Anomaly In The Indian Ocean Mantle | H199: Excellent_47 | I199: http://www.creationismonline.com/YEC/Excellent.xlsm | J199: 200 | K199: 5 | L199: 199 | M199: Yes | N199: Jurassic | P199: 123 | Q199: 107 | X199: 123 | AE199: 123
A200: 201 | B200: Earth and Planetary Science Letters | C200: 1996 | D200: 142 | E200: 501-512 | G200: Pb Isotope Constraints | H200: Pb-206_02 | I200: http://www.creationismonline.com/YEC/Lead_206_207.xlsm | J200: 2540 | K200: 22 | L200: 201 | M200: Yes | N200: Siderian | P200: 30 | Q200: 22 | X200: 30 | AE200: 30
A201: 202 | B201: Earth and Planetary Science Letters | C201: 2010 | D201: 300 | E201: 152-163 | G201: The Solar System Primordial Lead | H201: Pb-206_05 | I201: http://www.creationismonline.com/YEC/Lead_206_207.xlsm | J201: 4500 | K201: 29 | L201: 202 | M201: Yes | N201: Basin Groups | P201: 73 | Q201: 70 | X201: 73 | AE201: 73
... 207 more rows

Sheet Dates
A1: ID | B1: Model Age (Ma) | C1: Geo Period | D1: Citation | E1: Dating Method | F1: Calculated Age (Ma) | G1: Negative | H1: Older Earth | I1: Older Sun | J1: Older Galaxy | K1: Older Universe
A3: 24 | B3: 1200 | C3: 16 | D3: 1 | E3: Rb/Sr | F3: 23312 | H3: 1 | I3: 1 | J3: 1 | K3: 1 | L3: 4
A4: 25 | B4: 1200 | C4: 16 | D4: 1 | E4: Rb/Sr | F4: 7816 | H4: 1 | I4: 1 | L4: 2
A5: 26 | B5: 1200 | C5: 16 | D5: 1 | E5: Rb/Sr | F5: 6953 | H5: 1 | I5: 1 | L5: 2
A6: 27 | B6: 1200 | C6: 16 | D6: 1 | E6: Rb/Sr | F6: 6105 | H6: 1 | I6: 1 | L6: 2
A7: 174 | B7: 605 | C7: 13 | D7: 2 | E7: Ar/Ar | F7: 18620 | H7: 1 | I7: 1 | J7: 1 | K7: 1 | L7: 4
A8: 394 | B8: 1230 | C8: 16 | D8: 3 | E8: Ar/Ar | F8: 4746 | H8: 1 | L8: 1
A9: 457 | B9: 24 | C9: 2 | D9: 4 | E9: U235 | F9: 10478 | H9: 1 | I9: 1 | J9: 1 | L9: 3
A10: 405 | B10: 24 | C10: 2 | D10: 4 | E10: Pb/Pb | F10: -190 | G10: 1 | L10: 1
A11: 407 | B11: 24 | C11: 2 | D11: 4 | E11: Pb/Pb | F11: -153 | G11: 1 | L11: 1
A12: 412 | B12: 24 | C12: 2 | D12: 4 | E12: Pb/Pb | F12: -49 | G12: 1 | L12: 1
A13: 413 | B13: 24 | C13: 2 | D13: 4 | E13: Pb/Pb | F13: -90 | G13: 1 | L13: 1
A14: 433 | B14: 24 | C14: 2 | D14: 4 | E14: Pb/Pb | F14: -5850 | G14: 1 | L14: 1
A15: 484 | B15: 2800 | C15: 23 | D15: 5 | E15: Ar/Ar | F15: 9840 | H15: 1 | I15: 1 | L15: 2
A16: 485 | B16: 2800 | C16: 23 | D16: 5 | E16: Ar/Ar | F16: 7330 | H16: 1 | I16: 1 | L16: 2
A17: 486 | B17: 2800 | C17: 23 | D17: 5 | E17: Ar/Ar | F17: 6560 | H17: 1 | I17: 1 | L17: 2
A18: 487 | B18: 2800 | C18: 23 | D18: 5 | E18: Ar/Ar | F18: 6200 | H18: 1 | I18: 1 | L18: 2
A19: 488 | B19: 2800 | C19: 23 | D19: 5 | E19: Ar/Ar | F19: 6040 | H19: 1 | I19: 1 | L19: 2
A20: 489 | B20: 2800 | C20: 23 | D20: 5 | E20: Ar/Ar | F20: 5990 | H20: 1 | I20: 1 | L20: 2
A21: 490 | B21: 2800 | C21: 23 | D21: 5 | E21: Ar/Ar | F21: 5580 | H21: 1 | I21: 1 | L21: 2
A22: 491 | B22: 2800 | C22: 23 | D22: 5 | E22: Ar/Ar | F22: 5520 | H22: 1 | I22: 1 | L22: 2
A23: 492 | B23: 2800 | C23: 23 | D23: 5 | E23: Ar/Ar | F23: 5480 | H23: 1 | I23: 1 | L23: 2
A24: 493 | B24: 2800 | C24: 23 | D24: 5 | E24: Ar/Ar | F24: 5120 | H24: 1 | I24: 1 | L24: 2
A25: 494 | B25: 2800 | C25: 23 | D25: 5 | E25: Ar/Ar | F25: 4820 | H25: 1 | L25: 1
A26: 596 | B26: 35 | C26: 3 | D26: 6 | E26: U238 | F26: 11780 | H26: 1 | I26: 1 | J26: 1 | L26: 3
A27: 580 | B27: 35 | C27: 3 | D27: 6 | E27: U238 | F27: 7323 | H27: 1 | I27: 1 | L27: 2
A28: 592 | B28: 35 | C28: 3 | D28: 6 | E28: U238 | F28: 5060 | H28: 1 | I28: 1 | L28: 2
A29: 524 | B29: 35 | C29: 3 | D29: 6 | E29: Pb/Pb | F29: -34 | G29: 1 | L29: 1
A30: 525 | B30: 35 | C30: 3 | D30: 6 | E30: Pb/Pb | F30: -160 | G30: 1 | L30: 1
A31: 526 | B31: 35 | C31: 3 | D31: 6 | E31: Pb/Pb | F31: -190 | G31: 1 | L31: 1
A32: 527 | B32: 35 | C32: 3 | D32: 6 | E32: Pb/Pb | F32: -200 | G32: 1 | L32: 1
A33: 528 | B33: 35 | C33: 3 | D33: 6 | E33: Pb/Pb | F33: -220 | G33: 1 | L33: 1
A34: 529 | B34: 35 | C34: 3 | D34: 6 | E34: Pb/Pb | F34: -240 | G34: 1 | L34: 1
A35: 530 | B35: 35 | C35: 3 | D35: 6 | E35: Pb/Pb | F35: -260 | G35: 1 | L35: 1
A36: 531 | B36: 35 | C36: 3 | D36: 6 | E36: Pb/Pb | F36: -290 | G36: 1 | L36: 1
A37: 532 | B37: 35 | C37: 3 | D37: 6 | E37: Pb/Pb | F37: -310 | G37: 1 | L37: 1
A38: 533 | B38: 35 | C38: 3 | D38: 6 | E38: Pb/Pb | F38: -340 | G38: 1 | L38: 1
A39: 534 | B39: 35 | C39: 3 | D39: 6 | E39: Pb/Pb | F39: -340 | G39: 1 | L39: 1
A40: 535 | B40: 35 | C40: 3 | D40: 6 | E40: Pb/Pb | F40: -420 | G40: 1 | L40: 1
A41: 536 | B41: 35 | C41: 3 | D41: 6 | E41: Pb/Pb | F41: -500 | G41: 1 | L41: 1
A42: 537 | B42: 35 | C42: 3 | D42: 6 | E42: Pb/Pb | F42: -530 | G42: 1 | L42: 1
A43: 538 | B43: 35 | C43: 3 | D43: 6 | E43: Pb/Pb | F43: -530 | G43: 1 | L43: 1
A44: 539 | B44: 35 | C44: 3 | D44: 6 | E44: Pb/Pb | F44: -550 | G44: 1 | L44: 1
A45: 540 | B45: 35 | C45: 3 | D45: 6 | E45: Pb/Pb | F45: -610 | G45: 1 | L45: 1
A46: 541 | B46: 35 | C46: 3 | D46: 6 | E46: Pb/Pb | F46: -650 | G46: 1 | L46: 1
A47: 542 | B47: 35 | C47: 3 | D47: 6 | E47: Pb/Pb | F47: -1240 | G47: 1 | L47: 1
A48: 584 | B48: 35 | C48: 3 | D48: 6 | E48: U238 | F48: 4654 | H48: 1 | L48: 1
A49: 589 | B49: 35 | C49: 3 | D49: 6 | E49: U238 | F49: 4830 | H49: 1 | L49: 1
A50: 661 | B50: 1600 | C50: 18 | D50: 7 | E50: K/Ar | F50: 5030 | H50: 1 | I50: 1 | L50: 2
A51: 658 | B51: 1600 | C51: 18 | D51: 7 | E51: K/Ar | F51: 4920 | H51: 1 | L51: 1
A52: 659 | B52: 1600 | C52: 18 | D52: 7 | E52: K/Ar | F52: 4960 | H52: 1 | L52: 1
A53: 660 | B53: 1600 | C53: 18 | D53: 7 | E53: K/Ar | F53: 4970 | H53: 1 | L53: 1
A54: 667 | B54: 4562 | C54: 29 | D54: 8 | E54: U238 | F54: 6473 | H54: 1 | I54: 1 | L54: 2
A55: 668 | B55: 4562 | C55: 29 | D55: 8 | E55: U238 | F55: 5165 | H55: 1 | I55: 1 | L55: 2
A56: 670 | B56: 4562 | C56: 29 | D56: 8 | E56: U238 | F56: 5519 | H56: 1 | I56: 1 | L56: 2
A57: 681 | B57: 4562 | C57: 29 | D57: 8 | E57: U235 | F57: 5013 | H57: 1 | I57: 1 | L57: 2
A58: 697 | B58: 4562 | C58: 29 | D58: 8 | E58: Th232 | F58: 5127 | H58: 1 | I58: 1 | L58: 2
A59: 662 | B59: 4562 | C59: 29 | D59: 8 | E59: U238 | F59: 4628 | H59: 1 | L59: 1
A60: 664 | B60: 4562 | C60: 29 | D60: 8 | E60: U238 | F60: 4647 | H60: 1 | L60: 1
A61: 665 | B61: 4562 | C61: 29 | D61: 8 | E61: U238 | F61: 4845 | H61: 1 | L61: 1
A62: 669 | B62: 4562 | C62: 29 | D62: 8 | E62: U238 | F62: 4724 | H62: 1 | L62: 1
A63: 674 | B63: 4562 | C63: 29 | D63: 8 | E63: U238 | F63: 4643 | H63: 1 | L63: 1
A64: 675 | B64: 4562 | C64: 29 | D64: 8 | E64: U238 | F64: 4625 | H64: 1 | L64: 1
A65: 679 | B65: 4562 | C65: 29 | D65: 8 | E65: U235 | F65: 4646 | H65: 1 | L65: 1
A66: 682 | B66: 4562 | C66: 29 | D66: 8 | E66: U235 | F66: 4743 | H66: 1 | L66: 1
A67: 683 | B67: 4562 | C67: 29 | D67: 8 | E67: U235 | F67: 4612 | H67: 1 | L67: 1
A68: 684 | B68: 4562 | C68: 29 | D68: 8 | E68: U235 | F68: 4837 | H68: 1 | L68: 1
A69: 690 | B69: 4562 | C69: 29 | D69: 8 | E69: Th232 | F69: 4607 | H69: 1 | L69: 1
A70: 691 | B70: 4562 | C70: 29 | D70: 8 | E70: Th232 | F70: 4619 | H70: 1 | L70: 1
A71: 692 | B71: 4562 | C71: 29 | D71: 8 | E71: Th232 | F71: 4683 | H71: 1 | L71: 1
A72: 693 | B72: 4562 | C72: 29 | D72: 8 | E72: Th232 | F72: 4980 | H72: 1 | L72: 1
A73: 694 | B73: 4562 | C73: 29 | D73: 8 | E73: Th232 | F73: 4604 | H73: 1 | L73: 1
A74: 696 | B74: 4562 | C74: 29 | D74: 8 | E74: Th232 | F74: 4626 | H74: 1 | L74: 1
A75: 758 | B75: 4566 | C75: 29 | D75: 9 | E75: U238 | F75: 10066 | H75: 1 | I75: 1 | J75: 1 | L75: 3
A76: 748 | B76: 4566 | C76: 29 | D76: 9 | E76: U238 | F76: 5147 | H76: 1 | I76: 1 | L76: 2
A77: 749 | B77: 4566 | C77: 29 | D77: 9 | E77: U238 | F77: 5180 | H77: 1 | I77: 1 | L77: 2
A78: 750 | B78: 4566 | C78: 29 | D78: 9 | E78: U238 | F78: 5336 | H78: 1 | I78: 1 | L78: 2
A79: 751 | B79: 4566 | C79: 29 | D79: 9 | E79: U238 | F79: 5345 | H79: 1 | I79: 1 | L79: 2
A80: 752 | B80: 4566 | C80: 29 | D80: 9 | E80: U238 | F80: 5396 | H80: 1 | I80: 1 | L80: 2
A81: 753 | B81: 4566 | C81: 29 | D81: 9 | E81: U238 | F81: 5462 | H81: 1 | I81: 1 | L81: 2
A82: 754 | B82: 4566 | C82: 29 | D82: 9 | E82: U238 | F82: 5526 | H82: 1 | I82: 1 | L82: 2
A83: 755 | B83: 4566 | C83: 29 | D83: 9 | E83: U238 | F83: 5604 | H83: 1 | I83: 1 | L83: 2
A84: 756 | B84: 4566 | C84: 29 | D84: 9 | E84: U238 | F84: 5956 | H84: 1 | I84: 1 | L84: 2
A85: 757 | B85: 4566 | C85: 29 | D85: 9 | E85: U238 | F85: 6945 | H85: 1 | I85: 1 | L85: 2
A86: 736 | B86: 4566 | C86: 29 | D86: 9 | E86: U238 | F86: 4614 | H86: 1 | L86: 1
A87: 737 | B87: 4566 | C87: 29 | D87: 9 | E87: U238 | F87: 4659 | H87: 1 | L87: 1
A88: 738 | B88: 4566 | C88: 29 | D88: 9 | E88: U238 | F88: 4733 | H88: 1 | L88: 1
A89: 739 | B89: 4566 | C89: 29 | D89: 9 | E89: U238 | F89: 4756 | H89: 1 | L89: 1
A90: 740 | B90: 4566 | C90: 29 | D90: 9 | E90: U238 | F90: 4791 | H90: 1 | L90: 1
A91: 741 | B91: 4566 | C91: 29 | D91: 9 | E91: U238 | F91: 4798 | H91: 1 | L91: 1
A92: 742 | B92: 4566 | C92: 29 | D92: 9 | E92: U238 | F92: 4824 | H92: 1 | L92: 1
A93: 743 | B93: 4566 | C93: 29 | D93: 9 | E93: U238 | F93: 4842 | H93: 1 | L93: 1
A94: 744 | B94: 4566 | C94: 29 | D94: 9 | E94: U238 | F94: 4850 | H94: 1 | L94: 1
A95: 745 | B95: 4566 | C95: 29 | D95: 9 | E95: U238 | F95: 4875 | H95: 1 | L95: 1
A96: 746 | B96: 4566 | C96: 29 | D96: 9 | E96: U238 | F96: 4879 | H96: 1 | L96: 1
A97: 747 | B97: 4566 | C97: 29 | D97: 9 | E97: U238 | F97: 4950 | H97: 1 | L97: 1
A98: 824 | B98: 4557 | C98: 29 | D98: 10 | E98: U235 | F98: 5119 | H98: 1 | I98: 1 | L98: 2
A99: 843 | B99: 4557 | C99: 29 | D99: 10 | E99: U238 | F99: 5534.9 | H99: 1 | I99: 1 | L99: 2
A100: 844 | B100: 4557 | C100: 29 | D100: 10 | E100: U238 | F100: 5658.1 | H100: 1 | I100: 1 | L100: 2
A101: 851 | B101: 4557 | C101: 29 | D101: 10 | E101: U238 | F101: 6071.6 | H101: 1 | I101: 1 | L101: 2
A102: 852 | B102: 4557 | C102: 29 | D102: 10 | E102: U238 | F102: 6625.4 | H102: 1 | I102: 1 | L102: 2
A103: 859 | B103: 4557 | C103: 29 | D103: 10 | E103: U238 | F103: 5080.4 | H103: 1 | I103: 1 | L103: 2
A104: 863 | B104: 4557 | C104: 29 | D104: 10 | E104: U238 | F104: 5471 | H104: 1 | I104: 1 | L104: 2
A105: 864 | B105: 4557 | C105: 29 | D105: 10 | E105: U238 | F105: 5290.6 | H105: 1 | I105: 1 | L105: 2
A106: 865 | B106: 4557 | C106: 29 | D106: 10 | E106: U238 | F106: 5567.8 | H106: 1 | I106: 1 | L106: 2
A107: 815 | B107: 4557 | C107: 29 | D107: 10 | E107: U235 | F107: 4838 | H107: 1 | L107: 1
A108: 816 | B108: 4557 | C108: 29 | D108: 10 | E108: U235 | F108: 4873 | H108: 1 | L108: 1
A109: 823 | B109: 4557 | C109: 29 | D109: 10 | E109: U235 | F109: 4980 | H109: 1 | L109: 1
A110: 827 | B110: 4557 | C110: 29 | D110: 10 | E110: U235 | F110: 4648 | H110: 1 | L110: 1
A111: 828 | B111: 4557 | C111: 29 | D111: 10 | E111: U235 | F111: 4661 | H111: 1 | L111: 1
A112: 829 | B112: 4557 | C112: 29 | D112: 10 | E112: U235 | F112: 4604 | H112: 1 | L112: 1
A113: 830 | B113: 4557 | C113: 29 | D113: 10 | E113: U235 | F113: 4686 | H113: 1 | L113: 1
A114: 831 | B114: 4557 | C114: 29 | D114: 10 | E114: U235 | F114: 4717 | H114: 1 | L114: 1
A115: 832 | B115: 4557 | C115: 29 | D115: 10 | E115: U235 | F115: 4682 | H115: 1 | L115: 1
A116: 835 | B116: 4557 | C116: 29 | D116: 10 | E116: U235 | F116: 4826 | H116: 1 | L116: 1
A117: 836 | B117: 4557 | C117: 29 | D117: 10 | E117: U235 | F117: 4776 | H117: 1 | L117: 1
A118: 837 | B118: 4557 | C118: 29 | D118: 10 | E118: U235 | F118: 4853 | H118: 1 | L118: 1
A119: 854 | B119: 4557 | C119: 29 | D119: 10 | E119: U238 | F119: 4613.3 | H119: 1 | L119: 1
A120: 855 | B120: 4557 | C120: 29 | D120: 10 | E120: U238 | F120: 4841.6 | H120: 1 | L120: 1
A121: 856 | B121: 4557 | C121: 29 | D121: 10 | E121: U238 | F121: 4892.9 | H121: 1 | L121: 1
A122: 857 | B122: 4557 | C122: 29 | D122: 10 | E122: U238 | F122: 4694.6 | H122: 1 | L122: 1
A123: 858 | B123: 4557 | C123: 29 | D123: 10 | E123: U238 | F123: 4971.9 | H123: 1 | L123: 1
A124: 860 | B124: 4557 | C124: 29 | D124: 10 | E124: U238 | F124: 4957.4 | H124: 1 | L124: 1
A125: 919 | B125: 1.772 | C125: 1 | D125: 11 | E125: U238 | F125: 5445 | H125: 1 | I125: 1 | L125: 2
A126: 920 | B126: 1.772 | C126: 1 | D126: 11 | E126: U238 | F126: 5571 | H126: 1 | I126: 1 | L126: 2
A127: 1042 | B127: 1.772 | C127: 1 | D127: 11 | E127: Pb/Pb | F127: -804.2495753 | G127: 1 | L127: 1
A128: 1043 | B128: 1.772 | C128: 1 | D128: 11 | E128: Pb/Pb | F128: -782.1205135 | G128: 1 | L128: 1
A129: 1044 | B129: 1.772 | C129: 1 | D129: 11 | E129: Pb/Pb | F129: -462.4153055 | G129: 1 | L129: 1
A130: 1054 | B130: 1.772 | C130: 1 | D130: 11 | E130: Pb/Pb | F130: 4747.477832 | H130: 1 | L130: 1
A131: 1086 | B131: 10 | C131: 2 | D131: 12 | E131: U238 | F131: 20209 | H131: 1 | I131: 1 | J131: 1 | K131: 1 | L131: 4
A132: 1123 | B132: 10 | C132: 2 | D132: 12 | E132: Th232 | F132: 82030 | H132: 1 | I132: 1 | J132: 1 | K132: 1 | L132: 4
A133: 1124 | B133: 10 | C133: 2 | D133: 12 | E133: Th232 | F133: 57900 | H133: 1 | I133: 1 | J133: 1 | K133: 1 | L133: 4
A134: 1125 | B134: 10 | C134: 2 | D134: 12 | E134: Th232 | F134: 28600 | H134: 1 | I134: 1 | J134: 1 | K134: 1 | L134: 4
A135: 1126 | B135: 10 | C135: 2 | D135: 12 | E135: Th232 | F135: 12900 | H135: 1 | I135: 1 | J135: 1 | L135: 3
A136: 1076 | B136: 10 | C136: 2 | D136: 12 | E136: U238 | F136: 7940 | H136: 1 | I136: 1 | L136: 2
A137: 1077 | B137: 10 | C137: 2 | D137: 12 | E137: U238 | F137: 6372 | H137: 1 | I137: 1 | L137: 2
A138: 1078 | B138: 10 | C138: 2 | D138: 12 | E138: U238 | F138: 7504 | H138: 1 | I138: 1 | L138: 2
A139: 1079 | B139: 10 | C139: 2 | D139: 12 | E139: U238 | F139: 6292 | H139: 1 | I139: 1 | L139: 2
A140: 1263 | B140: 10 | C140: 2 | D140: 13 | E140: Pb/Pb | F140: -366 | G140: 1 | L140: 1
A141: 1264 | B141: 10 | C141: 2 | D141: 13 | E141: Pb/Pb | F141: -341 | G141: 1 | L141: 1
A142: 1265 | B142: 10 | C142: 2 | D142: 13 | E142: Pb/Pb | F142: -91 | G142: 1 | L142: 1
A143: 1266 | B143: 10 | C143: 2 | D143: 13 | E143: Pb/Pb | F143: -90 | G143: 1 | L143: 1
A144: 1267 | B144: 10 | C144: 2 | D144: 13 | E144: Pb/Pb | F144: -2546 | G144: 1 | L144: 1
A145: 1268 | B145: 10 | C145: 2 | D145: 13 | E145: Pb/Pb | F145: -3144 | G145: 1 | L145: 1
A146: 1269 | B146: 10 | C146: 2 | D146: 13 | E146: Pb/Pb | F146: -3560 | G146: 1 | L146: 1
A147: 1270 | B147: 10 | C147: 2 | D147: 13 | E147: Pb/Pb | F147: -303 | G147: 1 | L147: 1
A148: 1271 | B148: 10 | C148: 2 | D148: 13 | E148: Pb/Pb | F148: -87 | G148: 1 | L148: 1
A149: 1273 | B149: 10 | C149: 2 | D149: 13 | E149: Pb/Pb | F149: -446 | G149: 1 | L149: 1
A150: 1274 | B150: 10 | C150: 2 | D150: 13 | E150: Pb/Pb | F150: -1142 | G150: 1 | L150: 1
A151: 1275 | B151: 10 | C151: 2 | D151: 13 | E151: Pb/Pb | F151: -531 | G151: 1 | L151: 1
A152: 1276 | B152: 10 | C152: 2 | D152: 13 | E152: Pb/Pb | F152: -1792 | G152: 1 | L152: 1
A153: 1277 | B153: 10 | C153: 2 | D153: 13 | E153: Pb/Pb | F153: -1348 | G153: 1 | L153: 1
A154: 1278 | B154: 10 | C154: 2 | D154: 13 | E154: Pb/Pb | F154: -1321 | G154: 1 | L154: 1
A155: 1279 | B155: 10 | C155: 2 | D155: 13 | E155: Pb/Pb | F155: -1219 | G155: 1 | L155: 1
A156: 1280 | B156: 10 | C156: 2 | D156: 13 | E156: Pb/Pb | F156: -3388 | G156: 1 | L156: 1
A157: 1281 | B157: 10 | C157: 2 | D157: 13 | E157: Pb/Pb | F157: -2630 | G157: 1 | L157: 1
A158: 1282 | B158: 10 | C158: 2 | D158: 13 | E158: Pb/Pb | F158: -346 | G158: 1 | L158: 1
A159: 1283 | B159: 10 | C159: 2 | D159: 13 | E159: Pb/Pb | F159: -1457 | G159: 1 | L159: 1
A160: 1284 | B160: 10 | C160: 2 | D160: 13 | E160: Pb/Pb | F160: -3690 | G160: 1 | L160: 1
A161: 1285 | B161: 10 | C161: 2 | D161: 13 | E161: Pb/Pb | F161: -1942 | G161: 1 | L161: 1
A162: 1287 | B162: 10 | C162: 2 | D162: 13 | E162: Pb/Pb | F162: -30 | G162: 1 | L162: 1
A163: 1288 | B163: 10 | C163: 2 | D163: 13 | E163: Pb/Pb | F163: -27 | G163: 1 | L163: 1
A164: 1293 | B164: 10 | C164: 2 | D164: 13 | E164: Pb/Pb | F164: -2991 | G164: 1 | L164: 1
A165: 1294 | B165: 10 | C165: 2 | D165: 13 | E165: Pb/Pb | F165: -498 | G165: 1 | L165: 1
A166: 1295 | B166: 10 | C166: 2 | D166: 13 | E166: Pb/Pb | F166: -3879 | G166: 1 | L166: 1
A167: 1297 | B167: 10 | C167: 2 | D167: 13 | E167: Pb/Pb | F167: -107 | G167: 1 | L167: 1
A168: 1298 | B168: 10 | C168: 2 | D168: 13 | E168: Pb/Pb | F168: -152 | G168: 1 | L168: 1
A169: 1299 | B169: 10 | C169: 2 | D169: 13 | E169: Pb/Pb | F169: -712 | G169: 1 | L169: 1
A170: 1300 | B170: 10 | C170: 2 | D170: 13 | E170: Pb/Pb | F170: -966 | G170: 1 | L170: 1
A171: 1302 | B171: 10 | C171: 2 | D171: 13 | E171: Pb/Pb | F171: -2252 | G171: 1 | L171: 1
A172: 1311 | B172: 4624 | C172: 31 | D172: 14 | E172: Rb/Sr | F172: 10430 | H172: 1 | I172: 1 | J172: 1 | L172: 3
A173: 1312 | B173: 4624 | C173: 31 | D173: 14 | E173: Rb/Sr | F173: 13700 | H173: 1 | I173: 1 | J173: 1 | L173: 3
A174: 1308 | B174: 4624 | C174: 31 | D174: 14 | E174: Rb/Sr | F174: 5730 | H174: 1 | I174: 1 | L174: 2
A175: 1309 | B175: 4624 | C175: 31 | D175: 14 | E175: Rb/Sr | F175: 8310 | H175: 1 | I175: 1 | L175: 2
A176: 1316 | B176: 4624 | C176: 31 | D176: 14 | E176: Os/Os | F176: -932 | G176: 1 | L176: 1
A177: 1317 | B177: 4624 | C177: 31 | D177: 14 | E177: Os/Os | F177: -2809 | G177: 1 | L177: 1
A178: 1318 | B178: 4624 | C178: 31 | D178: 14 | E178: Os/Os | F178: -2788 | G178: 1 | L178: 1
A179: 1319 | B179: 4624 | C179: 31 | D179: 14 | E179: Os/Os | F179: -2805 | G179: 1 | L179: 1
A180: 1320 | B180: 4624 | C180: 31 | D180: 14 | E180: Os/Os | F180: -7264 | G180: 1 | L180: 1
A181: 1321 | B181: 4624 | C181: 31 | D181: 14 | E181: Os/Os | F181: -7260 | G181: 1 | L181: 1
A182: 1324 | B182: 4624 | C182: 31 | D182: 14 | E182: Os/Os | F182: -1588 | G182: 1 | L182: 1
A183: 1325 | B183: 4624 | C183: 31 | D183: 14 | E183: Os/Os | F183: -9394 | G183: 1 | L183: 1
A184: 1326 | B184: 4624 | C184: 31 | D184: 14 | E184: Os/Os | F184: -827 | G184: 1 | L184: 1
A185: 1327 | B185: 3450 | C185: 24 | D185: 15 | E185: Ar/Ar | F185: 13960 | H185: 1 | I185: 1 | J185: 1 | K185: 1 | L185: 4
A186: 1328 | B186: 3450 | C186: 24 | D186: 15 | E186: Ar/Ar | F186: 13130 | H186: 1 | I186: 1 | J186: 1 | L186: 3
A187: 1329 | B187: 3450 | C187: 24 | D187: 15 | E187: Ar/Ar | F187: 10920 | H187: 1 | I187: 1 | J187: 1 | L187: 3
A188: 1330 | B188: 3450 | C188: 24 | D188: 15 | E188: Ar/Ar | F188: 9930 | H188: 1 | I188: 1 | L188: 2
A189: 1331 | B189: 3450 | C189: 24 | D189: 15 | E189: Ar/Ar | F189: 9170 | H189: 1 | I189: 1 | L189: 2
A190: 1332 | B190: 3450 | C190: 24 | D190: 15 | E190: Ar/Ar | F190: 9080 | H190: 1 | I190: 1 | L190: 2
A191: 1333 | B191: 3450 | C191: 24 | D191: 15 | E191: Ar/Ar | F191: 8430 | H191: 1 | I191: 1 | L191: 2
A192: 1334 | B192: 3450 | C192: 24 | D192: 15 | E192: Ar/Ar | F192: 7920 | H192: 1 | I192: 1 | L192: 2
A193: 1335 | B193: 3450 | C193: 24 | D193: 15 | E193: Ar/Ar | F193: 7670 | H193: 1 | I193: 1 | L193: 2
A194: 1336 | B194: 3450 | C194: 24 | D194: 15 | E194: Ar/Ar | F194: 7360 | H194: 1 | I194: 1 | L194: 2
A195: 1337 | B195: 3450 | C195: 24 | D195: 15 | E195: Ar/Ar | F195: 6230 | H195: 1 | I195: 1 | L195: 2
A196: 1338 | B196: 3450 | C196: 24 | D196: 15 | E196: Ar/Ar | F196: 6140 | H196: 1 | I196: 1 | L196: 2
A197: 1339 | B197: 3450 | C197: 24 | D197: 15 | E197: Ar/Ar | F197: 5520 | H197: 1 | I197: 1 | L197: 2
A198: 1340 | B198: 3450 | C198: 24 | D198: 15 | E198: Ar/Ar | F198: 5480 | H198: 1 | I198: 1 | L198: 2
A199: 1341 | B199: 3450 | C199: 24 | D199: 15 | E199: Ar/Ar | F199: 5320 | H199: 1 | I199: 1 | L199: 2
A200: 1654 | B200: 4290 | C200: 27 | D200: 16 | E200: Ar/Ar | F200: 5150 | H200: 1 | I200: 1 | L200: 2
A201: 1655 | B201: 4290 | C201: 27 | D201: 16 | E201: Ar/Ar | F201: 5200 | H201: 1 | I201: 1 | L201: 2
... 4299 more rows

Sheet Range
A1: Model Age (ma) | B1: Period ID | C1: Citation | D1: Period | E1: Maximum Age (Ma) | F1: Minimum Age (Ma) | G1: Range (Ma)
A3: 1200 | B3: 16 | C3: 1 | D3: Stenian | E3: 23312 | F3: 79 | G3: =E3-F3 -> 23233
A4: 605 | B4: 13 | C4: 2 | D4: Ediacaran | E4: 18620 | F4: 287 | G4: 18333
A5: 1230 | B5: 16 | C5: 3 | D5: Stenian | E5: 4746 | F5: 53.7 | G5: 4692.3
A6: 24 | B6: 2 | C6: 4 | D6: Neogene | E6: 10478 | F6: -5850 | G6: 16328
A7: 2800 | B7: 23 | C7: 5 | D7: Neoarchean | E7: 9840 | F7: 580 | G7: 9260
A8: 35 | B8: 3 | C8: 6 | D8: Paleogene | E8: 11780 | F8: -1240 | G8: 13020
A9: 1600 | B9: 18 | C9: 7 | D9: Calymmian | E9: 5030 | F9: 1890 | G9: 3140
A10: 4562 | B10: 29 | C10: 8 | D10: Basin Groups | E10: 6473 | F10: 4249 | G10: 2224
A11: 4566 | B11: 29 | C11: 9 | D11: Basin Groups | E11: 10066 | F11: 1799 | G11: 8267
A12: 4557 | B12: 29 | C12: 10 | D12: Basin Groups | E12: 6625.4 | F12: 2833.7 | G12: 3791.7
A13: 1.772 | B13: 1 | C13: 11 | D13: Quaternary | E13: 5571 | F13: -804.2495753 | G13: 6375.249575
A14: 10 | B14: 2 | C14: 12 | D14: Neogene | E14: 82030 | F14: 0.1329 | G14: 82029.8671
A15: 10 | B15: 2 | C15: 13 | D15: Neogene | E15: 11.174 | F15: -3879 | G15: 3890.174
A16: 4624 | B16: 31 | C16: 14 | D16: Solar System | E16: 13700 | F16: -9394 | G16: 23094
A17: 3450 | B17: 24 | C17: 15 | D17: Mesoarchean | E17: 13960 | F17: 1550 | G17: 12410
A18: 4290 | B18: 27 | C18: 16 | D18: Early Imbrian | E18: 9710 | F18: 120.4 | G18: 9589.6
A19: 4490 | B19: 28 | C19: 17 | D19: Nectarian | E19: 5164 | F19: 1465 | G19: 3699
A20: 4480 | B20: 28 | C20: 18 | D20: Nectarian | E20: 9669 | F20: 162 | G20: 9507
A21: 4533 | B21: 29 | C21: 19 | D21: Basin Groups | E21: 8058 | F21: 1102 | G21: 6956
A22: 4400 | B22: 28 | C22: 20 | D22: Nectarian | E22: 9300 | F22: 3700 | G22: 5600
A23: 4565 | B23: 29 | C23: 21 | D23: Basin Groups | E23: 5104 | F23: 3271 | G23: 1833
A24: 1230 | B24: 16 | C24: 22 | D24: Stenian | E24: 5065.9 | F24: 614.6 | G24: 4451.3
A25: 4 | B25: 2 | C25: 23 | D25: Neogene | E25: 281.0065991 | F25: -133.2295321 | G25: 414.2361312
A26: 4530 | B26: 29 | C26: 24 | D26: Basin Groups | E26: 7460 | F26: 1871 | G26: 5589
A27: 625 | B27: 13 | C27: 25 | D27: Ediacaran | E27: 11250.7 | F27: 163.5 | G27: 11087.2
A28: 4700 | B28: 31 | C28: 26 | D28: Solar System | E28: 7400 | F28: 3650 | G28: 3750
A29: 885 | B29: 14 | C29: 27 | D29: Cryogenian | E29: 14917 | F29: 94 | G29: 14823
A30: 4000 | B30: 26 | C30: 28 | D30: Eoarchean | E30: 13348 | F30: 65 | G30: 13283
A31: 4584 | B31: 30 | C31: 29 | D31: Cryptic | E31: 4909 | F31: 1452 | G31: 3457
A32: 2050 | B32: 20 | C32: 30 | D32: Orosirian | E32: 22090 | F32: 1000 | G32: 21090
A33: 450 | B33: 11 | C33: 31 | D33: Ordovician | E33: 7100 | F33: 190 | G33: 6910
A34: 4584 | B34: 30 | C34: 32 | D34: Cryptic | E34: 4909 | F34: 1272 | G34: 3637
A35: 4610 | B35: 31 | C35: 33 | D35: Solar System | E35: 5700 | F35: 5700 | G35: 0
A36: 4540 | B36: 29 | C36: 34 | D36: Basin Groups | E36: 9588.034365 | F36: -2416.468165 | G36: 12004.50253
A37: 1200 | B37: 16 | C37: 35 | D37: Stenian | E37: 7330 | F37: 550 | G37: 6780
A38: 44 | B38: 3 | C38: 36 | D38: Paleogene | E38: 7000 | F38: 6000 | G38: 1000
A39: 2700 | B39: 22 | C39: 37 | D39: Siderian | E39: 15500 | F39: -39503.89733 | G39: 55003.89733
A40: 646 | B40: 13 | C40: 38 | D40: Ediacaran | E40: 8569 | F40: 633 | G40: 7936
A41: 2400 | B41: 21 | C41: 39 | D41: Rhyacian | E41: 12600 | F41: -3309.171131 | G41: 15909.17113
A42: 2700 | B42: 22 | C42: 40 | D42: Siderian | E42: 6800 | F42: 6370 | G42: 430
A43: 2690 | B43: 22 | C43: 41 | D43: Siderian | E43: 6300 | F43: 5930 | G43: 370
A44: 1595 | B44: 17 | C44: 42 | D44: Ectasian | E44: 9969 | F44: 1115 | G44: 8854
A45: 3500 | B45: 24 | C45: 43 | D45: Mesoarchean | E45: 15600 | F45: 100 | G45: 15500
A46: 4514 | B46: 29 | C46: 44 | D46: Basin Groups | E46: 11421 | F46: 3481 | G46: 7940
A47: 4700 | B47: 31 | C47: 45 | D47: Solar System | E47: 10400 | F47: 4700 | G47: 5700
A48: 1744 | B48: 18 | C48: 46 | D48: Calymmian | E48: 900000 | F48: 1400 | G48: 898600
A49: 4500 | B49: 29 | C49: 47 | D49: Basin Groups | E49: 13000 | F49: 5300 | G49: 7700
A50: 4553 | B50: 29 | C50: 48 | D50: Basin Groups | E50: 16490 | F50: 698.57 | G50: 15791.43
A51: 4635 | B51: 31 | C51: 49 | D51: Solar System | E51: 8615 | F51: 4126 | G51: 4489
A52: 4240 | B52: 27 | C52: 50 | D52: Early Imbrian | E52: 28140 | F52: 4010 | G52: 24130
A53: 1650 | B53: 18 | C53: 51 | D53: Calymmian | E53: 76523 | F53: -31071 | G53: 107594
A54: 103 | B54: 4 | C54: 52 | D54: Cretaceous | E54: 19870 | F54: -22420 | G54: 42290
A55: 2800 | B55: 23 | C55: 53 | D55: Neoarchean | E55: 4000 | F55: -21037.23369 | G55: 25037.23369
A56: 1800 | B56: 19 | C56: 54 | D56: Statherian | E56: 39229 | F56: -87817 | G56: 127046
A57: 128 | B57: 4 | C57: 55 | D57: Cretaceous | E57: 1400 | F57: -0.9 | G57: 1400.9
A58: 25 | B58: 2 | C58: 56 | D58: Neogene | E58: 2478 | F58: -3297 | G58: 5775
A59: 12 | B59: 2 | C59: 57 | D59: Neogene | E59: 11659.5624 | F59: -14.7 | G59: 11674.2624
A60: 600 | B60: 13 | C60: 58 | D60: Ediacaran | E60: 2013 | F60: -2192 | G60: 4205
A61: 1800 | B61: 19 | C61: 59 | D61: Statherian | E61: 7330 | F61: 600 | G61: 6730
A62: 600 | B62: 13 | C62: 60 | D62: Ediacaran | E62: 1550 | F62: -1348 | G62: 2898
A63: 320 | B63: 8 | C63: 61 | D63: Carboniferous | E63: 9100 | F63: -4300 | G63: 13400
A64: 1210 | B64: 16 | C64: 62 | D64: Stenian | E64: 4500 | F64: -1983 | G64: 6483
A65: 2600 | B65: 22 | C65: 63 | D65: Siderian | E65: 9700 | F65: -10800 | G65: 20500
A66: 2800 | B66: 23 | C66: 64 | D66: Neoarchean | E66: 19831 | F66: -14258 | G66: 34089
A67: 2760 | B67: 22 | C67: 65 | D67: Siderian | E67: 6959 | F67: 6959 | G67: =E67-F67 -> 0
A68: 2900 | B68: 23 | C68: 66 | D68: Neoarchean | E68: 7690 | F68: -7120 | G68: 14810
A69: 65 | B69: 3 | C69: 67 | D69: Paleogene | E69: 5134 | F69: 59 | G69: 5075
A70: 1 | B70: 1 | C70: 68 | D70: Quaternary | E70: 5017 | F70: 4840 | G70: 177
A71: 125 | B71: 4 | C71: 69 | D71: Cretaceous | E71: 23318.08733 | F71: 114 | G71: 23204.08733
A72: 400 | B72: 9 | C72: 70 | D72: Devonian | E72: 8176 | F72: 250 | G72: 7926
A73: 110 | B73: 4 | C73: 71 | D73: Cretaceous | E73: 5001 | F73: 4985 | G73: 16
A74: 2000 | B74: 19 | C74: 72 | D74: Statherian | E74: 5018 | F74: 4944 | G74: 74
A75: 180 | B75: 5 | C75: 73 | D75: Jurassic | E75: 30279 | F75: 179 | G75: 30100
A76: 650 | B76: 13 | C76: 74 | D76: Ediacaran | E76: 5071 | F76: 4933 | G76: 138
A77: 1500 | B77: 17 | C77: 75 | D77: Ectasian | E77: 5001 | F77: 4935 | G77: 66
A78: 75 | B78: 4 | C78: 76 | D78: Cretaceous | E78: 6571 | F78: 4835 | G78: 1736
A79: 1100 | B79: 15 | C79: 77 | D79: Tonian | E79: 6900 | F79: 30 | G79: 6870
A80: 3000 | B80: 23 | C80: 78 | D80: Neoarchean | E80: 78960 | F80: -279000 | G80: 357960
A81: 1600 | B81: 18 | C81: 79 | D81: Calymmian | E81: 8380 | F81: 2780 | G81: 5600
A82: 3800 | B82: 25 | C82: 80 | D82: Paleoarchean | E82: 10300 | F82: -1247778 | G82: 1258078
A83: 1400 | B83: 17 | C83: 81 | D83: Ectasian | E83: 77160 | F83: -1425341.65 | G83: 1502501.65
A84: 2700 | B84: 22 | C84: 82 | D84: Siderian | E84: 11000 | F84: 100 | G84: 10900
A85: 2200 | B85: 20 | C85: 83 | D85: Orosirian | E85: 8620 | F85: -24710 | G85: 33330
A86: 1120 | B86: 15 | C86: 84 | D86: Tonian | E86: 966 | F86: -1 | G86: 967
A87: 1550 | B87: 17 | C87: 85 | D87: Ectasian | E87: 9730 | F87: -3220 | G87: 12950
A88: 2700 | B88: 22 | C88: 86 | D88: Siderian | E88: 7850 | F88: 1980 | G88: 5870
A89: 2800 | B89: 23 | C89: 87 | D89: Neoarchean | E89: 96661 | F89: -67490 | G89: 164151
A90: 1700 | B90: 18 | C90: 88 | D90: Calymmian | E90: 34000 | F90: -32000 | G90: 66000
A91: 3600 | B91: 25 | C91: 89 | D91: Paleoarchean | E91: 13551.84368 | F91: -3309.171131 | G91: 16861.01481
A92: 2600 | B92: 22 | C92: 90 | D92: Siderian | E92: 143830 | F92: -117980 | G92: 261810
A93: 1600 | B93: 18 | C93: 91 | D93: Calymmian | E93: 20000 | F93: 267 | G93: 19733
A94: 0.1 | B94: 1 | C94: 92 | D94: Quaternary | E94: 5135 | F94: 0 | G94: 5135
A95: 3000 | B95: 23 | C95: 93 | D95: Neoarchean | E95: 6451 | F95: 543 | G95: 5908
A96: 0.5 | B96: 1 | C96: 94 | D96: Quaternary | E96: 2.95 | F96: -0.5793 | G96: 3.5293
A97: 1200 | B97: 16 | C97: 95 | D97: Stenian | E97: 9489 | F97: -3209 | G97: 12698
A98: 2610 | B98: 22 | C98: 96 | D98: Siderian | E98: 49630 | F98: -1187221 | G98: 1236851
A99: 3000 | B99: 23 | C99: 97 | D99: Siderian | E99: 20469 | F99: -7120 | G99: 27589
A100: 3400 | B100: 24 | C100: 98 | D100: Mesoarchean | E100: 100601 | F100: 5222 | G100: 95379
A101: 1900 | B101: 19 | C101: 99 | D101: Statherian | E101: 10538.7729 | F101: 1739.12933 | G101: 8799.643572
A102: 520 | B102: 12 | C102: 100 | D102: Cambrian | E102: 199318.7809 | F102: 4818.089251 | G102: 194500.6917
A103: 113 | B103: 4 | C103: 101 | D103: Cretaceous | E103: 1100.329908 | F103: -534.8355639 | G103: 1635.165472
A104: 180 | B104: 5 | C104: 102 | D104: Jurassic | E104: 165469 | F104: 161 | G104: 165308
A105: 1650 | B105: 18 | C105: 103 | D105: Calymmian | E105: 11963.68447 | F105: 0.6316222684 | G105: 11963.05285
A106: 135 | B106: 4 | C106: 104 | D106: Cretaceous | E106: 20583 | F106: 0.1933895246 | G106: 20582.80661
A107: 4090 | B107: 26 | C107: 105 | D107: Eoarchean | E107: 173633.1751 | F107: 4928.898428 | G107: 168704.2766
A108: 20 | B108: 2 | C108: 106 | D108: Neogene | E108: 14556.52907 | F108: 1436.962903 | G108: 13119.56617
A109: 555 | B109: 13 | C109: 107 | D109: Ediacaran | E109: 54790.18999 | F109: 3.633275592 | G109: 54786.55672
A110: 4563 | B110: 29 | C110: 108 | D110: Basin Groups | E110: 90595.1063 | F110: 4963.220396 | G110: 85631.8859
A111: 1550 | B111: 17 | C111: 109 | D111: Ectasian | E111: 24930 | F111: 280 | G111: 24650
A112: 2250 | B112: 20 | C112: 110 | D112: Orosirian | E112: 44241.66403 | F112: 877.9394324 | G112: 43363.72459
A113: 1500 | B113: 17 | C113: 111 | D113: Ectasian | E113: 9588 | F113: 3089 | G113: 6499
A114: 4560 | B114: 29 | C114: 112 | D114: Basin Groups | E114: 8880 | F114: 2990 | G114: 5890
A115: 4500 | B115: 29 | C115: 113 | D115: Basin Groups | E115: 11010 | F115: 1460 | G115: 9550
A116: 2000 | B116: 19 | C116: 114 | D116: Statherian | E116: 5804 | F116: 322 | G116: 5482
A117: 1030 | B117: 15 | C117: 115 | D117: Tonian | E117: 9969 | F117: 985 | G117: 8984
A118: 4420 | B118: 28 | C118: 116 | D118: Nectarian | E118: 8375 | F118: 3608 | G118: 4767
A119: 71 | B119: 3 | C119: 117 | D119: Paleogene | E119: 8300 | F119: 5000 | G119: 3300
A120: 4000 | B120: 26 | C120: 118 | D120: Eoarchean | E120: 9680 | F120: 2185 | G120: 7495
A121: 3220 | B121: 24 | C121: 119 | D121: Mesoarchean | E121: 6930 | F121: 510 | G121: 6420
A122: 3750 | B122: 25 | C122: 120 | D122: Paleoarchean | E122: 9905 | F122: 855 | G122: 9050
A123: 2800 | B123: 23 | C123: 121 | D123: Neoarchean | E123: 6190 | F123: 2265 | G123: 3925
A124: 4500 | B124: 29 | C124: 122 | D124: Basin Groups | E124: 5845 | F124: 615 | G124: 5230
A125: 1426 | B125: 17 | C125: 123 | D125: Ectasian | E125: 7973 | F125: -750391 | G125: 758364
A126: 150 | B126: 4 | C126: 124 | D126: Cretaceous | E126: 9100 | F126: 150 | G126: 8950
A127: 4000 | B127: 26 | C127: 125 | D127: Eoarchean | E127: 8180 | F127: 359.8 | G127: 7820.2
A128: 3100 | B128: 23 | C128: 126 | D128: Neoarchean | E128: 18500 | F128: -223004 | G128: 241504
A129: 3900 | B129: 25 | C129: 127 | D129: Paleoarchean | E129: 9153 | F129: 726 | G129: 8427
A130: 2700 | B130: 22 | C130: 128 | D130: Siderian | E130: 5800 | F130: -4103949 | G130: 4109749
A131: 4500 | B131: 29 | C131: 129 | D131: Basin Groups | E131: 7830 | F131: 2510 | G131: =E131-F131 -> 5320
A132: 3300 | B132: 24 | C132: 130 | D132: Mesoarchean | E132: 7810 | F132: -45000000000 | G132: 45000007810
A133: 1530 | B133: 17 | C133: 131 | D133: Ectasian | E133: 23837.24623 | F133: 1841.714582 | G133: 21995.53164
A134: 4527 | B134: 29 | C134: 132 | D134: Basin Groups | E134: 6480.827863 | F134: 2.158415568 | G134: 6478.669447
A135: 4018 | B135: 26 | C135: 133 | D135: Eoarchean | E135: 6433.876124 | F135: 2894.87674 | G135: 3538.999384
A136: 125 | B136: 4 | C136: 134 | D136: Cretaceous | E136: 82561 | F136: 758.3904012 | G136: 81802.6096
A137: 25 | B137: 2 | C137: 135 | D137: Neogene | E137: 88294 | F137: 238 | G137: 88056
A138: 1740 | B138: 18 | C138: 136 | D138: Calymmian | E138: 5049 | F138: 1848 | G138: 3201
A139: 25 | B139: 2 | C139: 137 | D139: Neogene | E139: 5010 | F139: 4968 | G139: 42
A140: 90 | B140: 4 | C140: 138 | D140: Cretaceous | E140: 5064.729693 | F140: 4996.204361 | G140: 68.52533217
A141: 225 | B141: 6 | C141: 139 | D141: Triassic | E141: 11174 | F141: 4900 | G141: 6274
A142: 2000 | B142: 19 | C142: 140 | D142: Statherian | E142: 40059 | F142: 1608 | G142: 38451
A143: 4565 | B143: 29 | C143: 141 | D143: Basin Groups | E143: 5206 | F143: 4577 | G143: 629
A144: 4568 | B144: 30 | C144: 142 | D144: Cryptic | E144: 5379 | F144: 4713 | G144: 666
A145: 4500 | B145: 29 | C145: 143 | D145: Basin Groups | E145: 8900 | F145: 4410 | G145: 4490
A146: 100 | B146: 4 | C146: 144 | D146: Cretaceous | E146: 277727 | F146: 6643 | G146: 271084
A147: 20 | B147: 2 | C147: 145 | D147: Neogene | E147: 5014 | F147: 4962 | G147: 52
A148: 3500 | B148: 24 | C148: 147 | D148: Mesoarchean | E148: 11517 | F148: -24295 | G148: 35812
A149: 100 | B149: 4 | C149: 148 | D149: Cretaceous | E149: 55110 | F149: 4799 | G149: 50311
A150: 2850 | B150: 23 | C150: 149 | D150: Neoarchean | E150: 8728 | F150: 2792 | G150: 5936
A151: 200 | B151: 5 | C151: 150 | D151: Jurassic | E151: 5046 | F151: 4950 | G151: 96
A152: 0.55 | B152: 1 | C152: 151 | D152: Quaternary | E152: 5035 | F152: 4972 | G152: 63
A153: 0 | B153: 3 | C153: 152 | D153: Paleogene | E153: 5150 | F153: 4849 | G153: 301
A154: 481 | B154: 11 | C154: 153 | D154: Ordovician | E154: 80532 | F154: 4805 | G154: 75727
A155: 7 | B155: 2 | C155: 154 | D155: Neogene | E155: 4977 | F155: 4966 | G155: 11
A156: 0.045 | B156: 1 | C156: 155 | D156: Quaternary | E156: 41460 | F156: 11390 | G156: 30070
A157: 1250 | B157: 16 | C157: 156 | D157: Stenian | E157: 5017 | F157: 4939 | G157: 78
A158: 84 | B158: 4 | C158: 157 | D158: Cretaceous | E158: 5053 | F158: 4984 | G158: 69
A159: 20 | B159: 2 | C159: 158 | D159: Neogene | E159: 5021 | F159: 4945 | G159: 76
A160: 16 | B160: 2 | C160: 159 | D160: Neogene | E160: 4987 | F160: 4952 | G160: 35
A161: 56 | B161: 3 | C161: 160 | D161: Paleogene | E161: 5316 | F161: 5010 | G161: 306
A162: 11 | B162: 2 | C162: 161 | D162: Neogene | E162: 4986 | F162: 4911 | G162: 75
A163: 50 | B163: 3 | C163: 162 | D163: Paleogene | E163: 5016.272153 | F163: 4975.578532 | G163: 40.69362071
A164: 10 | B164: 2 | C164: 163 | D164: Neogene | E164: 5090 | F164: 5018 | G164: 72
A165: 60 | B165: 3 | C165: 164 | D165: Paleogene | E165: 5174 | F165: 4987 | G165: 187
A166: 25 | B166: 2 | C166: 165 | D166: Neogene | E166: 4895.052575 | F166: 20.22362275 | G166: 4874.828952
A167: 3000 | B167: 23 | C167: 166 | D167: Neoarchean | E167: 5038.389195 | F167: 5021.354203 | G167: 17.03499179
A168: 2 | B168: 1 | C168: 167 | D168: Quaternary | E168: 4990 | F168: 4985 | G168: 5
A169: 7 | B169: 2 | C169: 168 | D169: Neogene | E169: 4987.495393 | F169: 4904.868945 | G169: 82.62644756
A170: 680 | B170: 13 | C170: 169 | D170: Ediacaran | E170: 5046 | F170: 5029 | G170: 17
A171: 1500 | B171: 17 | C171: 170 | D171: Ectasian | E171: 5237 | F171: 5065 | G171: 172
A172: 100 | B172: 4 | C172: 171 | D172: Cretaceous | E172: 5076 | F172: 4533 | G172: 543
A173: 31 | B173: 3 | C173: 173 | D173: Paleogene | E173: 6489 | F173: 4956 | G173: 1533
A174: 3500 | B174: 24 | C174: 174 | D174: Mesoarchean | E174: 5493 | F174: 4835 | G174: 658
A175: 2100 | B175: 20 | C175: 175 | D175: Orosirian | E175: 17743 | F175: 506 | G175: 17237
A176: 2700 | B176: 22 | C176: 176 | D176: Siderian | E176: 5289 | F176: 3719 | G176: 1570
A177: 16 | B177: 2 | C177: 177 | D177: Neogene | E177: 4964 | F177: 4909 | G177: 55
A178: 348 | B178: 8 | C178: 178 | D178: Carboniferous | E178: 5016 | F178: 668 | G178: 4348
A179: 4580 | B179: 30 | C179: 179 | D179: Cryptic | E179: 5300 | F179: 4374 | G179: 926
A180: 2000 | B180: 19 | C180: 180 | D180: Statherian | E180: 5127 | F180: 4845 | G180: 282
A181: 33 | B181: 3 | C181: 181 | D181: Paleogene | E181: 5057 | F181: 4838 | G181: 219
A182: 2000 | B182: 19 | C182: 182 | D182: Statherian | E182: 4898 | F182: 2614 | G182: 2284
A183: 25 | B183: 2 | C183: 183 | D183: Neogene | E183: 5009 | F183: 4992 | G183: 17
A184: 1700 | B184: 18 | C184: 184 | D184: Calymmian | E184: 5239 | F184: 4840 | G184: 399
A185: 2700 | B185: 22 | C185: 185 | D185: Siderian | E185: 5333 | F185: 5018 | G185: 315
A186: 28 | B186: 2 | C186: 186 | D186: Neogene | E186: 4998 | F186: 4987 | G186: 11
A187: 1300 | B187: 16 | C187: 187 | D187: Stenian | E187: 99274.74573 | F187: 2646.359056 | G187: 96628.38667
A188: 248 | B188: 6 | C188: 188 | D188: Triassic | E188: 5061 | F188: 4930 | G188: 131
A189: 0.0025 | B189: 1 | C189: 189 | D189: Quaternary | E189: 4976.054566 | F189: 4959.029868 | G189: 17.02469835
A190: 70 | B190: 3 | C190: 190 | D190: Paleogene | E190: 5061 | F190: 5004 | G190: 57
A191: 1000 | B191: 15 | C191: 191 | D191: Tonian | E191: 5163 | F191: 5014 | G191: 149
A192: 6 | B192: 2 | C192: 193 | D192: Neogene | E192: 4968 | F192: 4920 | G192: 48
A193: 60 | B193: 3 | C193: 194 | D193: Paleogene | E193: 5019 | F193: 4807 | G193: 212
A194: 68 | B194: 3 | C194: 195 | D194: Paleogene | E194: 5010 | F194: 4976 | G194: 34
A195: 4500 | B195: 29 | C195: 196 | D195: Basin Groups | E195: 5362 | F195: 4717 | G195: =E195-F195 -> 645
A196: 131 | B196: 4 | C196: 197 | D196: Cretaceous | E196: 5039 | F196: 4987 | G196: 52
A197: 8 | B197: 2 | C197: 198 | D197: Neogene | E197: 4986 | F197: 4958 | G197: 28
A198: 200 | B198: 5 | C198: 199 | D198: Jurassic | E198: 6454 | F198: 4995 | G198: 1459
A199: 2540 | B199: 22 | C199: 201 | D199: Siderian | E199: 5347 | F199: 4862 | G199: 485
A200: 4500 | B200: 29 | C200: 202 | D200: Basin Groups | E200: 5381 | F200: 4964 | G200: 417
A201: 3678 | B201: 25 | C201: 203 | D201: Paleoarchean | E201: 22145.50286 | F201: 2268.117264 | G201: 19877.38559
... 204 more rows
